Cogmind - Beta 12 X1 @@@ ROGUE MODE // 2022.09.17 @ 11:06:48 Player: leiavoia Result: Destroyed by Architect with Modified Sigix Sheargun Performance ------------- Evolutions (9) 4500 Regions Visited (33) 6600 Robots Destroyed (1679) 8395 Value Destroyed (85594) 85594 Prototype IDs (302) 6040 Alien Tech Used (3) 600 Bonus (110901) 110901 TOTAL SCORE: 222630 Bonus ------- Triggered High Security 4000 Triggered Max Security 1000 High Alert Combat Kills 81027 Follower Combat Kills 1607 Aligned with FarCom 300 Met Data Miner 300 Met Imprinter 300 Met Zhirov 300 Met Warlord at Base 500 MAIN.C Attacked Warlord 500 Found Hidden Lab 3000 Scanned by Researcher 500 Acquired SGEMP 2000 Delivered SGEMP 2000 Destroyed MAIN.C Guards 500 Met MAIN.C 5000 Destroyed MAIN.C Shell 5000 Zhirov Destroyed MAIN.C 3000 Met Architect 300 Destroyed A8 300 Destroyed A6 400 Friendly Fire -933 Cogmind --------- Core Integrity 0/1600 Matter 87/300 Energy 238/240 System Corruption 3% Temperature Cool (4) Movement Hovering (66) Location -1/Access_0 Parts ------- > --- POWER (2) -------- Zero-point Reactor > --- PROPULSION (8) --- Combat Antigrav System Combat Linear Gravjet > --- UTILITY (11) ----- Experimental Targeting Computer Experimental Core Analyzer Graphene Brace > --- WEAPON (4) ------- Gravity Flail > --- INVENTORY (5) ---- Experimental Energy Well (600) Peak State ------------ > --- POWER ------------ Vortex Chain Reactor > --- PROPULSION ------- Biometal Heavy Treads Biometal Heavy Treads Biometal Heavy Treads Experimental Biometal Heavy Treads > --- UTILITY ---------- Experimental Cooling System Advanced Coolant Injector Cargo Storage Unit Precision Matter Filter Advanced Kinecellerator Layered Heavy Armor Plating Graphene Brace Experimental Thermal Shield Advanced Force Field > --- WEAPON ----------- Improved Potential Cannon Graviton Cannon Graviton Cannon > --- INVENTORY -------- Zero-point Reactor Zero-point Reactor Improved Linear Gravjet Combat Antigrav System Combat Antigrav System Combat Antigrav System Combat Antigrav System Combat Antigrav System Combat Antigrav System Combat Linear Gravjet Combat Linear Gravjet Advanced Power Amplifier Experimental Cooling System Advanced Coolant Injector Experimental Energy Well Experimental Energy Well Experimental Matter Compressor Precision Energy Filter Advanced Particle Charger Advanced Weapon Cycler Experimental Reaction Control System Experimental Phase Shifter Centrium Light Armor Plating Centrium Medium Armor Plating Advanced Shield Generator Advanced Force Field Long-range Tractor Beam Mini Drone Bay Transdimensional Reconstructor [Rating: 232] Favorites ----------- Power Quantum Reactor Engine Reinforced Deuterium Engine Power Core Micro Fission Core Reactor Quantum Reactor Propulsion Biometal Heavy Treads Treads Biometal Heavy Treads Leg Enhanced Flexi-carbon Leg Wheel Armored Huge Wheel Hover Unit Combat Antigrav System Flight Unit Improved Q-thruster Utility Cargo Storage Unit Device Advanced Cooling System Storage Cargo Storage Unit Processor Machine Analyzer Hackware Improved Hacking Suite Protection Layered Heavy Armor Plating Weapon Enhanced Nova Cannon Energy Gun Improved EM Shotgun Energy Cannon Enhanced Nova Cannon Ballistic Gun Battle Rifle Ballistic Cannon Tri-rail Accelerator Launcher Neutron Missile Launcher Special Weapon Plasma Cutter Impact Weapon Heavy Flail Slashing Weapon Power Sword Piercing Weapon Plasma Lance Special Melee Weapon Datajack Build | -11 -10 -10 -10 -9 -8 -7 -7 -7 -7 -6 -6 -6 -6 -6 -5 -5 -5 -5 -5 -4 -4 -4 -4 -4 -3 -3 -3 -3 -2 -2 -1 -1 -1 ------- Run | Scr Mat Min Exi Min Mat Fac Low Low Dat Pro Fac Low Low Zio Pro Fac Upp Upp War Pro Fac Upp Upp Zhi Pro Res Arm Lab Res Tes Acc Com Ac0 Slots Evolved 18 | . . . . . 4 2 . . . . 2 . . . . 2 . . . . 2 . . . . 2 . . 2 . 2 . . Power 1 | . . . . . . . . . . . . . . . . 1 . . . . . . . . . . . . . . . . . Propulsion 6 | . . . . . 2 . . . . . 1 . . . . 1 . . . . . . . . . . . . . . 2 . . Utility 9 | . . . . . 2 2 . . . . 1 . . . . . . . . . 1 . . . . 2 . . 1 . . . . Weapon 2 | . . . . . . . . . . . . . . . . . . . . . 1 . . . . . . . 1 . . . . Parts Attached 1828 | 3 12 . . 4 68 155 11 1 1 24 180 14 13 11 9 197 9 17 11 . 153 19 11 18 4 201 105 3 36 47 90 360 41 Power 92 | . . . . 1 3 5 1 . . 1 8 1 . . . 12 2 . 1 . 5 . 2 3 . 16 7 . . 2 4 16 2 Engine 17 | . . . . 1 3 5 1 . . 1 3 . . . . 2 1 . . . . . . . . . . . . . . . . Core 18 | . . . . . . . . . . . 3 . . . . 6 . . . . 2 . 1 1 . 1 . . . . . 4 . Reactor 57 | . . . . . . . . . . . 2 1 . . . 4 1 . 1 . 3 . 1 2 . 15 7 . . 2 4 12 2 Propulsion 228 | 2 4 . . 1 17 26 1 . . 7 28 2 3 1 1 23 . . 2 . 15 1 . 3 1 22 2 . 3 2 7 45 9 Treads 110 | 2 2 . . . 12 14 . . . 4 8 2 2 1 . 5 . . 1 . 8 1 . 1 1 10 2 . 3 2 7 22 . Leg 4 | . . . . . . . . . . 3 1 . . . . . . . . . . . . . . . . . . . . . . Wheel 21 | . 2 . . 1 2 5 1 . . . 7 . 1 . 1 1 . . . . . . . . . . . . . . . . . Hover 23 | . . . . . 2 . . . . . . . . . . . . . . . . . . . . . . . . . . 12 9 Flight 70 | . . . . . 1 7 . . . . 12 . . . . 17 . . 1 . 7 . . 2 . 12 . . . . . 11 . Utility 1077 | 1 4 . . . 22 64 6 . . 10 104 7 8 7 2 116 5 17 5 . 95 12 7 7 3 131 75 3 28 29 64 221 24 Device 849 | 1 . . . . 13 34 5 . . 4 82 3 8 5 2 89 5 16 4 . 73 7 5 3 3 109 73 3 24 26 55 177 20 Storage 42 | . 2 . . . 1 5 . . . 1 3 . . . . 5 . . . . 4 . . . . 3 1 . 2 . 4 11 . Processor 26 | . . . . . . . . . . . 1 . . . . 3 . 1 1 . . . 1 . . 3 . . 1 1 . 12 2 Hackware 21 | . 1 . . . 1 . . . . . 6 . . . . 4 . . . . 5 . . . . 4 . . . . . . . Protection 139 | . 1 . . . 7 25 1 . . 5 12 4 . 2 . 15 . . . . 13 5 1 4 . 12 1 . 1 2 5 21 2 Artifact . | . . . . . . . . . . . . . . . . . . . . . . . . . . . . . . . . . . Weapon 431 | . 4 . . 2 26 60 3 1 1 6 40 4 2 3 6 46 2 . 3 . 38 6 2 5 . 32 21 . 5 14 15 78 6 Energy Gun 37 | . 4 . . 1 18 9 . . . . 2 . . . . . . . . . . . . 1 . 1 . . . . . 1 . Energy Cannon 135 | . . . . . 1 10 1 . 1 2 13 . . 1 . 9 . . 1 . 21 3 1 2 . 11 7 . 1 6 6 35 3 Ballistic Gun 6 | . . . . . . . 2 . . . 1 . . . . . . . . . 2 . . . . . . . . . . 1 . Ballistic Cannon 103 | . . . . . 1 15 . . . 2 14 2 1 1 4 13 1 . 2 . 3 1 . 2 . 5 5 . 1 4 5 20 1 Launcher 121 | . . . . 1 6 20 . . . 2 8 2 1 . 1 20 1 . . . 4 2 1 . . 13 9 . 3 4 4 19 . Special Weapon 6 | . . . . . . . . . . . . . . . . . . . . . 5 . . . . . . . . . . 1 . Impact Weapon 18 | . . . . . . 6 . . . . 2 . . 1 1 3 . . . . 3 . . . . . . . . . . . 2 Slashing Weapon 1 | . . . . . . . . . . . . . . . . 1 . . . . . . . . . . . . . . . . . Piercing Weapon 3 | . . . . . . . . . . . . . . . . . . . . . . . . . . 2 . . . . . 1 . Special Melee Weapon 1 | . . . . . . . . 1 . . . . . . . . . . . . . . . . . . . . . . . . . Unidentified Prototypes 68 | . 1 . . . 6 1 . . . 3 6 . . 1 1 13 . . 4 . 1 . . 4 . 9 . . 2 2 7 7 . Corrupted Parts 7 | . . . . . 2 3 1 . . . . . . . . 1 . . . . . . . . . . . . . . . . . System Corruption 27 | . . . . . 3 15 3 . . . . . . . . 6 . . . . . . . . . . . . . . . . . Parts Lost 128 | . 2 . . . 3 24 4 . . 16 6 . 5 . 1 . 2 . . . 7 . 1 . . 8 3 . 1 3 1 11 30 Power 8 | . . . . . . 1 . . . 1 . . . . . . 1 . . . 1 . 1 . . 1 . . . . . . 2 Propulsion 27 | . . . . . 1 9 . . . 4 1 . 3 . . . . . . . . . . . . 2 . . . . . . 7 Utility 63 | . 1 . . . . 8 2 . . 8 3 . 2 . 1 . 1 . . . 6 . . . . 4 2 . 1 1 1 7 15 Weapon 30 | . 1 . . . 2 6 2 . . 3 2 . . . . . . . . . . . . . . 1 1 . . 2 . 4 6 Highest Loss Streak 16 | . 1 . . . 1 16 4 . . 7 3 . 3 . 1 . 2 . . . 2 . 1 . . 2 2 . 1 1 1 4 10 To Critical Strikes 2 | . . . . . . 1 . . . . 1 . . . . . . . . . . . . . . . . . . . . . . Average Slot Usage (%) 77 | . 99 100 100 100 95 80 71 76 69 87 80 80 75 67 85 80 63 64 61 58 71 62 67 59 73 74 75 76 77 80 75 76 73 Engine 2 | . 14 14 14 14 9 7 7 7 7 7 . . . . . 2 4 5 3 . . . . . . . . . . . . . . Reactor 5 | . . . . . . . . . . . 3 5 6 6 6 3 5 5 5 5 5 5 5 7 10 8 8 9 8 8 7 7 4 Treads 14 | . 17 14 14 14 25 16 . . . 18 10 20 13 13 19 7 17 17 17 17 10 15 15 14 15 10 14 14 13 13 16 15 5 Wheel 2 | . 10 14 14 14 5 3 15 15 15 1 5 6 7 6 6 . . . . . . . . . . . . . . . . . . Flight 3 | . . . . . . 5 . . . . 9 . . . . 17 . . . . 9 . . . . 5 . . . . . . . Device 18 | . 1 . . . 14 12 6 15 15 6 11 13 16 21 19 13 16 15 10 11 13 11 11 12 21 23 27 28 29 32 26 28 22 Storage 5 | . 14 14 14 14 9 7 7 7 7 13 6 6 6 6 6 5 5 5 5 5 4 5 5 5 5 4 4 4 4 4 4 4 1 Hackware 2 | . 9 . . . 2 . . . . . 6 . . . . 7 . . . . 11 . . . . 2 . . . . . . . Protection 7 | . 2 14 14 14 9 13 18 15 15 15 6 13 9 6 13 4 5 5 5 5 5 13 11 9 10 5 3 4 4 1 4 5 3 Energy Gun 2 | . 27 28 28 27 16 2 2 . . . . . . . . . . . . . . . . . . . . . . . . . . Energy Cannon 3 | . . . . . . 2 1 7 . 6 2 . . 2 4 . . . . . 2 4 4 . 5 3 5 4 4 6 7 7 4 Ballistic Cannon 4 | . . . . . . 3 7 6 . 6 3 12 12 . 6 2 4 5 4 5 3 4 5 . 5 3 2 9 12 3 2 3 6 Launcher 1 | . . . . . . 3 . . . . 2 . . . . 1 . . . . . . . . . 1 3 . . 6 5 1 . Naked Turns . | . . . . . . . . . . . . . . . . . . . . . . . . . . . . . . . . . . Heaviest Build 280 | 15 58 58 58 63 119 191 181 175 172 187 226 201 199 195 190 215 212 217 215 212 245 252 243 235 220 265 259 253 272 266 269 280 263 Greatest Support 310 | 40 40 10 10 12 83 85 56 56 56 83 90 28 38 28 38 225 220 220 220 220 237 225 225 225 225 227 215 215 230 230 310 310 310 Greatest Overweight (x) 9 | . 5 5 5 5 9 6 3 3 3 6 8 7 7 6 6 4 . . 1 . 1 1 1 1 . 3 1 1 1 1 . 3 . Average Overweight (x) 1 | . 3 5 5 4 2 1 2 3 2 2 . 6 6 6 5 . . . . . . 1 1 . . . 1 1 1 1 . . . Largest Inventory Capacity 30 | 8 20 20 20 20 25 30 30 30 30 30 30 30 30 30 30 30 30 30 30 30 30 30 30 30 30 30 30 30 30 30 30 30 30 Average Capacity 26 | 8 17 20 20 20 24 25 30 30 30 30 23 30 30 30 30 17 30 30 30 30 24 30 30 30 30 26 30 30 30 30 30 27 14 Most Carried 30 | 8 20 20 20 20 25 30 30 30 30 30 30 30 30 30 30 30 30 30 30 30 30 30 30 30 30 30 30 30 30 30 30 30 30 Average Carried 25 | 6 16 19 20 19 24 24 22 29 30 25 22 29 29 29 29 16 29 29 29 30 23 29 28 29 30 25 29 30 29 29 29 26 12 Final Capacity 30 | 8 20 20 20 20 25 30 30 30 30 30 30 30 30 30 30 30 30 30 30 30 30 30 30 30 30 30 30 30 30 30 30 30 5 Final Carried 30 | 7 20 20 20 20 25 26 30 30 30 23 30 30 30 30 30 30 30 30 30 30 30 30 29 30 30 30 30 30 30 30 30 30 1 Class Distribution -------------------- 50% | Hauler-Mutant 13% | Hauler-Tank 13% | Mutant 5% | Scavenger-Mutant 4% | Hacker-Sprinter Dominant Class ---------------- Mutant | -10/Materials Mutant | -10/Mines Mutant | -10/Exiles Mutant | -9/Mines Mutant | -8/Materials Hauler-Mutant | -7/Factory Hauler-Mutant | -7/Lower Caves Hauler-Mutant | -7/Lower Caves Hauler-Mutant | -7/Data Miner Scavenger-Mutant | -6/Proximity Caves Hauler-Mutant | -6/Factory Hauler-Mutant | -6/Lower Caves Hauler-Mutant | -6/Lower Caves Hauler-Mutant | -6/Zion Hauler-Mutant | -5/Proximity Caves Hacker-Sprinter | -5/Factory Hauler-Mutant | -5/Upper Caves Hauler-Mutant | -5/Upper Caves Hauler-Mutant | -5/Warlord Hauler-Mutant | -4/Proximity Caves Hacker-Mutant | -4/Factory Hauler-Tank | -4/Upper Caves Hauler-Tank | -4/Upper Caves Hauler-Mutant | -4/Zhirov Hauler-Tank | -3/Proximity Caves Hauler-Mutant | -3/Research Hauler-Tank | -3/Armory Hauler-Mutant | -3/Lab Hauler-Tank | -2/Research Hauler-Mutant | -2/Testing Hauler-Mutant | -1/Access Hauler-Mutant | -1/Command Scavenger-Mutant | -1/Access_0 Resources | -11 -10 -10 -10 -9 -8 -7 -7 -7 -7 -6 -6 -6 -6 -6 -5 -5 -5 -5 -5 -4 -4 -4 -4 -4 -3 -3 -3 -3 -2 -2 -1 -1 -1 ----------- Run | Scr Mat Min Exi Min Mat Fac Low Low Dat Pro Fac Low Low Zio Pro Fac Upp Upp War Pro Fac Upp Upp Zhi Pro Res Arm Lab Res Tes Acc Com Ac0 Matter Collected 57125 | 230 320 . . 62 1007 3647 457 158 . 551 5232 844 887 115 289 7735 917 754 142 304 4259 703 368 179 161 5172 3512 . 1653 2462 4169 9718 1118 Remotely 20184 | . . . . . . 1842 277 . . . 2360 70 210 . . 1467 65 265 . . 2035 487 242 . . 1715 1857 . 1002 807 1753 3184 546 Salvage Created 72654 | 103 1150 69 . 270 3543 3645 143 48 . 394 6489 482 353 . 235 5028 276 708 . 652 6799 532 728 271 120 7964 5998 . 527 6908 6397 12576 246 Parts 2727 | 6 82 3 . 21 172 183 3 5 . 13 244 15 19 . 11 190 9 22 . 11 244 23 16 7 6 334 205 . 15 208 193 456 11 Haulers Intercepted 30 | . 2 . . . 6 5 . . . . . . . . . 5 . . . . 6 . . . . 5 . . . . 1 . . Recyclers Shooed 25 | . 1 . . . 4 . . . . . 8 . . . . 1 . . . . 3 . . . . 3 . . . . 3 2 . Parts Field Recycled 46 | . . . . . . 46 . . . . . . . . . . . . . . . . . . . . . . . . . . . Retrieved Matter 160 | . . . . . . 160 . . . . . . . . . . . . . . . . . . . . . . . . . . . Parts Self-Destructed 144 | . . . . . . . 7 5 . 17 . 2 16 . 9 . 7 22 . 20 . 18 13 2 6 . . . . . . . . Prevented 15 | . . . . . . . 1 . . . . . . . 2 . . . . 9 . 3 . . . . . . . . . . . Kills | -11 -10 -10 -10 -9 -8 -7 -7 -7 -7 -6 -6 -6 -6 -6 -5 -5 -5 -5 -5 -4 -4 -4 -4 -4 -3 -3 -3 -3 -2 -2 -1 -1 -1 ------- Run | Scr Mat Min Exi Min Mat Fac Low Low Dat Pro Fac Low Low Zio Pro Fac Upp Upp War Pro Fac Upp Upp Zhi Pro Res Arm Lab Res Tes Acc Com Ac0 Combat Hostiles Destroyed 1538 | . 16 . . 7 51 107 3 1 . 12 130 12 10 . 8 146 9 23 . 14 160 16 8 . 3 155 151 . 12 168 128 181 7 Melee 7 | . . . . . . . . . . . 1 . . . . 1 . . . . 1 . . . . 4 . . . . . . . Guns 59 | . 11 . . 2 33 11 1 . . . 1 . . . . . . . . . . . . . . . . . . . . . . Cannons 339 | . . . . . . 18 2 1 . 6 31 2 7 . 7 25 5 23 . 14 55 11 5 . 3 36 20 . 11 11 18 21 7 AOE 1122 | . 4 . . 5 16 76 . . . 6 97 10 3 . 1 120 4 . . . 103 5 3 . . 115 131 . . 156 109 158 . Classes Destroyed 29 | 2 8 . . 2 3 3 . 1 . 1 2 1 1 . 1 . . . . . . . . . . 3 . . 1 . . . . Worker 88 | . 6 . . 1 6 7 . . . . 4 . . . . 13 . . . . 11 . . . . 11 . . . . 9 20 . Builder 69 | . 4 . . 1 7 11 . . . . 14 . . . . 5 . . . . 3 . . . . 14 . . . . 10 . . Tunneler 11 | 1 . . . . 2 . . . . . 4 . . . . . . . . . 1 . . . . . . . . . 3 . . Hauler 30 | . 2 . . . 6 5 . . . . . . . . . 5 . . . . 6 . . . . 5 . . . . 1 . . Recycler 67 | 1 2 1 . . 8 2 . . . . 22 . . . . 6 . . . . 8 . . . . 4 . . . . 7 6 . Carrier 23 | . . . . . . . . . . . 1 . . . . 1 . . . . . . . . . 3 5 . . 8 2 3 . Minesweeper 2 | . . . . . . . . . . . . . . . 1 . . 1 . . . . . . . . . . . . . . . Mechanic 73 | . 1 . . . 2 7 . . . . 4 . . . . 6 . . . . 7 . . . . 6 9 . . 11 6 14 . Operator 7 | . 2 . . . 1 . . . . . . . . . . . . . . . . . . . . 2 . . . . . 2 . Watcher 41 | . 3 . . . 5 . . . . . 5 . . . . 6 . . . . 8 . . . . 4 . . 2 . 1 7 . Swarmer 98 | . 6 . . 4 7 3 . . . . 7 . 3 . 4 17 5 9 . 3 15 5 . . . . . . . . . 10 . Saboteur 72 | . . . . . . . . . . . 7 . . . . 7 . . . . 6 . . . . 6 14 . . 16 7 9 . Grunt 586 | . 10 . . 2 28 51 . . . 7 54 4 1 . 3 39 2 10 . 9 55 7 4 . . 64 44 . 3 66 52 71 . Brawler 101 | . . . . 1 4 15 . . . 1 10 1 . . . 8 . . . . 13 . . . . 13 11 . 1 5 8 10 . Duelist 97 | . . . . . 1 9 . . . 1 11 1 . . . 15 . 2 . . 9 1 . . . 8 4 . . 12 11 12 . Protector 86 | . . . . . . 10 . . . 1 7 . . . . 9 . . . . 10 . . . . 11 7 . . 13 7 11 . Sentry 40 | . . . . . 10 1 . . . 1 3 2 . . . 2 1 2 . 1 3 1 . . . 6 . . 1 . . 6 . Demolisher 1 | . . . . . . . . . . . . . . . . . . . . . . . . . . . . . 1 . . . . Specialist 13 | . . . . . . . . . . . . . 3 . . . . . . . . . . . . . 8 . . . . 2 . Hunter 141 | . . . . . . 11 . . . . 17 . 1 . . 18 . . . . 21 2 2 . . 8 20 . . 14 18 9 . Programmer 205 | . . . . . . 6 . . . . 14 . 1 . 1 31 . . . . 28 . 2 . 3 33 32 . 3 24 17 10 . Heavy 7 | . . . . . 1 1 . . . . . . . . . . . . . . . . . . . 2 1 . . . 1 1 . Behemoth 5 | . . . . . . . . . . 1 . . 1 . . . 1 . . 1 . . . . . . . . . . . 1 . M Guard 2 | . . . . . . . . . . . . . . . . . . . . . . . . . . . . . . . . 2 . Enhanced Grunt 3 | . . . . . . . . . . . . . . . . . . . . . . . . . . . . . . . . . 3 Enhanced Hunter 2 | . . . . . . . . . . . . . . . . . . . . . . . . . . . . . . . . . 2 Combat Programmer 2 | . . . . . . . . . . . . . . . . . . . . . . . . . . . . . . . . 2 . Investigator 7 | . . . . . . . . . . . . . . . . . . . . . . . . . . 2 1 . . 1 1 2 . Striker 35 | . . . . . . . . . . . . . . . . . . . . . . . . . . 3 5 . 2 8 2 15 . Executioner 31 | . . . . . . . . . . . . . . . . . . . . . . . . . . 1 5 . 1 10 5 9 . Zionite 1 | . . . . 1 . . . . . . . . . . . . . . . . . . . . . . . . . . . . . Decomposer 5 | . . . . . . . . . . . . 3 2 . . . . . . . . . . . . . . . . . . . . Packrat 5 | . . . . . . . . . . . . . . . . . 2 . . . . . 3 . . . . . . . . . . Samaritan 8 | . . . . . . . . . . . . 2 2 . . . . . . . . . 4 . . . . . . . . . . Thug 5 | . . . . 1 . . . . . . . 4 . . . . . . . . . . . . . . . . . . . . . Savage 3 | . . . . . . . 3 . . . . . . . . . . . . . . . . . . . . . . . . . . Mutant 2 | . . . . . . . . 1 . . . 1 . . . . . . . . . . . . . . . . . . . . . Best Kill Streak 50 | 2 11 1 . 4 10 15 3 1 . 4 23 7 3 . 4 21 5 7 . 4 38 4 6 . 2 29 20 . 7 50 48 39 3 Combat Bots Only 47 | . 5 . . 4 7 15 3 1 . 4 22 7 3 . 4 20 5 7 . 4 34 4 6 . 2 25 19 . 7 47 38 34 3 Max Kills in Single Turn 13 | 1 4 1 . 3 3 4 1 1 . 2 4 4 2 . 1 6 4 1 . 1 8 3 2 . 1 10 12 . 1 13 8 13 1 Gunslinging . | . . . . . . . . . . . . . . . . . . . . . . . . . . . . . . . . . . Exploded 13 | . 1 . . 3 2 4 . . . 2 4 4 2 . 1 6 4 . . . 7 3 2 . . 8 11 . . 13 7 13 . Melee 1 | . . . . . . . . . . . 1 . . . . 1 . . . . 1 . . . . 1 . . . . . . . Uniques/NPCs Destroyed 3 | . . . . . . . . . . . . . . . . . . . . . . . . . . . . . . . . 1 2 MAIN.C Shell (-1/Command) A8 (-1/Access_0) A6 (-1/Access_0) Combat | -11 -10 -10 -10 -9 -8 -7 -7 -7 -7 -6 -6 -6 -6 -6 -5 -5 -5 -5 -5 -4 -4 -4 -4 -4 -3 -3 -3 -3 -2 -2 -1 -1 -1 -------- Run | Scr Mat Min Exi Min Mat Fac Low Low Dat Pro Fac Low Low Zio Pro Fac Upp Upp War Pro Fac Upp Upp Zhi Pro Res Arm Lab Res Tes Acc Com Ac0 Damage Taken 59322 | . 604 . . 171 1829 5699 682 122 . 1920 2863 468 992 . 402 2705 489 576 16 433 4831 1098 849 . 115 5251 3330 . 1918 1376 2565 9005 9013 Core 4170 | . 110 . . 84 228 451 28 11 . 189 111 103 31 . 64 245 10 15 . 9 303 27 . . . 260 123 . 179 64 32 303 1190 Absorbed by Shields 15471 | . . . . . 200 232 . 46 . 274 198 190 197 . 93 714 135 317 15 236 1853 576 298 . 119 2001 1460 . 641 509 896 2313 1958 Reduced by Siege Mode 4215 | . . . . . . . . . . . . . . . . 227 30 64 . 15 386 72 64 . 3 378 287 . 244 219 313 1599 314 Redirected to Shielding 227 | . . . . . . . . . . . . 29 12 . . 16 . . . . . 24 . . . 146 . . . . . . . Regen/Repaired (Parts) 1753 | . 121 . . . . . . . . . . . . . . 678 . . 40 . 712 . . . . 202 . . . . . . . Core Remaining (%) 60 | 100 . . . 22 58 . . . . 3 . . . . 63 . . . . 72 . . . . 71 . . 70 . 83 . . . Volleys Fired 3456 | 6 62 1 . 8 150 262 12 5 . 50 360 28 45 . 41 205 21 51 11 38 304 40 39 8 7 274 133 . 47 79 189 932 48 Largest 4 | 2 2 2 . 2 2 2 2 2 . 2 2 2 2 . 2 2 1 1 1 1 2 2 2 1 2 2 3 . 4 3 4 4 4 Hottest 480 | 80 90 90 . 90 150 150 113 128 . 129 153 96 93 . 115 133 60 60 90 60 150 150 150 105 150 179 263 . 365 306 372 480 340 Shots Fired 4976 | 12 124 2 . 15 275 359 24 12 . 69 434 47 77 . 51 256 24 50 12 38 346 53 47 8 15 368 190 . 140 138 306 1359 125 Gun 502 | 12 124 2 . 13 250 72 12 . . . 6 . . . . . . . . . . . . . . . . . . . . 11 . Cannon 3052 | . . . . . 8 185 12 12 . 62 322 41 75 . 50 107 23 50 12 38 291 47 44 8 15 276 97 . 140 45 179 788 125 Launcher 1034 | . . . . 2 17 102 . . . 7 106 6 2 . 1 149 1 . . . 42 6 3 . . 92 93 . . 93 127 185 . Special 388 | . . . . . . . . . . . . . . . . . . . . . 13 . . . . . . . . . . 375 . Kinetic 1572 | . . . . . 3 97 23 5 . 44 180 41 75 . 37 92 23 50 3 38 176 37 15 . 7 150 33 . 91 6 26 218 102 Thermal 1982 | . . . . . 98 106 1 7 . 18 148 . . . . 15 . . 9 . 115 10 29 8 8 126 64 . 49 39 153 956 23 Explosive 1027 | . . . . 2 17 102 . . . 7 106 6 2 . 1 149 1 . . . 55 6 3 . . 92 93 . . 93 127 165 . Electromagnetic 395 | 12 124 2 . 13 157 54 . . . . . . . . 13 . . . . . . . . . . . . . . . . 20 . Robot Hit Streak 76 | 4 11 2 . 9 15 20 15 2 . 12 18 13 14 . 7 46 35 28 4 19 28 25 12 6 10 65 19 . 25 21 24 76 18 Robot Miss Streak 8 | 2 8 2 . 1 4 6 2 1 . 3 4 2 4 . 5 4 4 3 . 3 3 5 2 2 2 4 2 . 3 2 2 3 3 Penetration Max 1 | . . . . . . . . . . . . . . . . . . . . . . . . . . . . . . . . 1 . Secondary Targets 2 | . . . . . 2 . . . . . . . . . . . . . . . . . . . . . . . . . . . . Max Gunslinging Chain 1 | . . . . . 1 . . . . . . . . . . . . . . . . . . . . . . . . . . . . Shots Hit Robots 3385 | 8 85 1 . 14 218 263 18 6 3 48 264 32 55 . 28 213 21 49 1 37 235 42 36 6 12 255 96 . 82 34 134 998 91 Core Hits 4190 | 3 51 2 . 15 206 310 6 2 . 37 352 34 23 . 13 370 16 35 1 28 349 30 26 3 5 374 308 . 28 410 352 764 37 Critical Kills 13 | . . . . . . 2 . . . . . . . . . . . . . . 1 . . . . . . . 1 1 2 6 . Critical Parts Destroyed 14 | . . . . . . 1 . . . . . . . . . 6 . . . . 6 . . . . . . . . . . . 1 Critical Strikes 145 | 1 1 . . . 1 12 . . . 4 8 1 4 . . 9 2 2 . 13 19 3 . . . 12 1 . 4 1 3 34 10 Burn 2 | . . . . . 1 1 . . . . . . . . . . . . . . . . . . . . . . . . . . . Meltdown 11 | . . . . . . 1 . . . . . . . . . . . . . . . . . . . . . . 1 1 2 6 . Destroy 2 | . . . . . . . . . . . . . . . . . . . . . . . . . . . . . . . . 2 . Blast 95 | . . . . . . 7 . . . 4 8 1 4 . . 3 2 2 . 13 10 3 . . . 10 1 . 3 . 1 14 9 Corrupt 3 | 1 1 . . . . 1 . . . . . . . . . . . . . . . . . . . . . . . . . . . Smash 16 | . . . . . . 2 . . . . . . . . . 6 . . . . 7 . . . . . . . . . . . 1 Sever 14 | . . . . . . . . . . . . . . . . . . . . . 2 . . . . . . . . . . 12 . Impale 2 | . . . . . . . . . . . . . . . . . . . . . . . . . . 2 . . . . . . . Melee Attacks 454 | . . . . . . 8 . 2 3 . 88 . . 1 1 165 . . . . 72 . . . . 105 . . . . . 4 5 Impact 340 | . . . . . . 8 . . . . 88 . . 1 1 165 . . . . 72 . . . . . . . . . . . 5 Slashing . | . . . . . . . . . . . . . . . . . . . . . . . . . . . . . . . . . . Piercing 109 | . . . . . . . . . . . . . . . . . . . . . . . . . . 105 . . . . . 4 . Sneak Attacks 44 | . . . . . . 2 . 2 3 . 5 . . . . 15 . . . . 7 . . . . 10 . . . . . . . Combat Hostiles 2 | . . . . . . . . . . . . . . . . . . . . . 1 . . . . 1 . . . . . . . Follow-up Attacks 1 | . . . . . . . . . . . . . . . . . . . . . . . . . . 1 . . . . . . . Damage Inflicted 404100 | 111 1879 22 . 589 6712 17572 462 143 . 1966 26048 1947 2212 . 1154 30471 1801 2803 83 2379 40482 2917 2212 279 719 41053 39451 . 4000 46642 37769 84289 5933 Guns 7330 | 111 1342 22 . 219 3948 1389 146 . . . 34 . . . . . . . . . . . . . . . . . . . . 119 . Cannons 98386 | . . . . . 73 3258 294 143 . 1126 7081 824 1964 . 946 4636 1408 2803 83 2379 10633 2229 1490 279 719 9135 2716 . 4000 1038 4177 30075 4877 Explosions 285317 | . 536 . . 364 2676 12703 . . . 840 18286 1123 248 . 208 23014 310 . . . 27566 688 722 . . 29335 36735 . . 45604 33562 49933 864 Melee 8357 | . . . . . . 222 . . . . 647 . . . . 2821 . . . . 1566 . . . . 2583 . . . . . 326 192 Ramming 373 | . 1 . . 6 15 . 22 . . . . . . . . . 83 . . . 216 . . . . . . . . . 30 . . Kinetic 59830 | . . . . . 48 1778 425 81 . 710 4722 824 1964 . 663 4480 1408 2803 83 2379 9366 1877 630 . 339 6994 1133 . 2717 144 544 10157 3561 Thermal 55345 | . 435 . . 125 2394 2060 15 62 . 416 2898 . . . 152 182 . . . . 2264 352 860 279 380 4326 3258 . 1283 2673 3889 24862 2180 Explosive 273731 | . . . . 239 1780 12608 . . . 840 17781 1123 248 . 56 22988 310 . . . 26569 688 691 . . 27150 35060 . . 43825 33306 48469 . Electromagnetic 5963 | 111 1443 22 . 219 2475 904 . . . . . . . . 283 . . . . . . . 31 . . . . . . . . 475 . Impact 5448 | . . . . . . 222 . . . . 647 . . . . 2821 . . . . 1566 . . . . . . . . . . . 192 Slashing 501 | . . . . . . . . . . . . . . . . . . . . . 501 . . . . . . . . . . . . Piercing 2909 | . . . . . . . . . . . . . . . . . . . . . . . . . . 2583 . . . . . 326 . Highest Corruption 53 | . . . . . 9 19 28 28 28 28 4 4 2 2 2 13 13 13 13 . 9 10 13 13 14 26 36 36 6 9 13 53 3 Average Corruption 13 | . . . . . 6 3 21 28 28 28 2 3 1 2 1 4 13 13 13 . 5 9 7 3 13 13 32 36 5 7 9 27 1 Corruption Purged 98 | . . . . . . 10 10 . . . . 4 . . . 4 . . . . . . . . . 7 . . . . . 63 . Corruption Blocked 55 | . . . . . . . . . . . . . . . . . . . . . . . . . . . . . 55 . . . . Effects 1862 | . . . . . 74 51 54 41 7 72 63 25 21 2 4 58 60 67 3 . 84 51 28 4 30 205 149 2 33 68 71 530 5 Message Errors 467 | . . . . . 22 19 10 11 2 18 12 7 7 . 2 17 14 22 2 . 20 14 8 . 11 41 41 . 6 21 22 116 2 Matter Fused 432 | . . . . . 21 6 16 10 3 14 14 6 3 2 . 12 13 22 . . 13 14 5 1 7 60 36 . 10 13 13 118 . Heat Flow Errors 223 | . . . . . 7 10 2 1 1 12 10 3 4 . 1 4 6 11 . . 9 12 5 1 5 26 13 2 3 9 7 58 1 Energy Discharges 211 | . . . . . 5 3 8 8 1 7 9 2 2 . 1 7 5 5 . . 17 1 1 1 3 29 12 . 4 5 10 64 1 Parts Rejected 12 | . . . . . . . . . . 1 . 2 . . . . . . . . 1 . . . 1 1 2 . . . . 4 . Data Loss (minor) 210 | . . . . . 10 8 8 3 . 8 7 3 1 . . 7 17 2 . . 9 5 5 . 1 23 17 . 2 10 6 58 . Data Loss (major) 83 | . . . . . 2 2 5 4 . 3 5 1 2 . . 3 1 2 . . 7 2 2 1 1 5 9 . 2 5 4 15 . Misfires 75 | . . . . . 1 2 2 3 . 5 2 . . . . 3 3 . 1 . 5 2 1 . 1 7 4 . 2 3 7 20 1 Alerts 49 | . . . . . 4 . . 1 . 2 1 1 2 . . 4 1 2 . . 1 1 . . . 6 3 . 2 . 1 17 . Misdirections 5 | . . . . . . . 1 . . . . . . . . . . . . . . . . . . 2 1 . . . . 1 . Weapon Failures 95 | . . . . . 2 1 2 . . 2 3 . . . . 1 . 1 . . 2 . 1 . . 5 11 . 2 2 1 59 . Overload Shots . | . . . . . . . . . . . . . . . . . . . . . . . . . . . . . . . . . . Overflow Damage 17864 | . . . . 10 159 499 8 . . . 1055 53 68 . 22 2171 112 188 . 7 2929 49 180 55 28 2113 2063 . 192 1881 1798 1960 264 Projectiles 3402 | . . . . . . 23 8 . . . 375 19 57 . 22 159 43 188 . 7 442 20 175 55 28 336 105 . 192 80 271 605 192 Explosions 11228 | . . . . 10 159 350 . . . . 428 34 11 . . 810 18 . . . 1465 29 5 . . 1276 1958 . . 1801 1519 1355 . Melee 3234 | . . . . . . 126 . . . . 252 . . . . 1202 51 . . . 1022 . . . . 501 . . . . 8 . 72 Knockbacks 291 | . . . . . . 7 . . . 7 24 2 8 . 7 17 4 21 . 9 34 18 11 . 2 29 10 . 24 1 1 18 37 Impact 14 | . . . . . . . . . . . 2 . . . . 3 1 . . . 5 . . . . . . . . . . . 3 Kinetic 268 | . . . . . . 7 . . . 7 21 2 8 . 7 12 3 19 . 9 29 17 10 . 2 27 10 . 24 1 1 18 34 Secondary 9 | . . . . . . . . . . . 1 . . . . 2 . 2 . . . 1 1 . . 2 . . . . . . . Self-Inflicted Damage 2778 | . 130 . . 88 461 381 11 . . 65 61 54 . . . 105 . . . . 114 . . . . 255 165 . . . 349 141 398 Shots 67 | . 5 . . 3 10 9 . . . 2 2 2 . . . 3 . . . . 2 . . . . 4 2 . . . 6 13 4 Rammed 14 | . 1 . . 1 1 . 3 . . . . . . . . . 3 . . . 4 . . . . . . . . . 1 . . Targets Rammed 17 | . 1 . . 1 1 . 3 . . . . . . . . . 5 . . . 5 . . . . . . . . . 1 . . Kicked . | . . . . . . . . . . . . . . . . . . . . . . . . . . . . . . . . . . Crushed 3 | . . . . . . . . . . . . . . . . . 2 . . . 1 . . . . . . . . . . . . Highest Temperature 473 | 72 217 39 . 204 360 437 174 207 230 303 300 123 237 . 212 230 236 233 4 27 362 233 189 53 155 388 352 172 473 345 401 459 248 Average Temperature 78 | 30 54 21 . 75 77 61 43 66 116 103 82 59 65 . 57 42 56 100 4 8 57 71 45 30 62 79 81 64 131 94 81 94 62 Received Heat Transfer 6578 | . 183 . . 12 536 697 . 49 . 538 808 133 103 . 6 360 59 135 . 126 355 301 138 . . 366 717 . 144 30 264 518 . Effects 43 | . . . . . 2 1 . . . 2 3 . . . 1 2 . . . . 1 . . . . 4 . . 1 . 6 20 . Shutdowns 4 | . . . . . . . . . . . . . . . . . . . . . . . . . . . . . 1 . 1 2 . Energy Bleed 6 | . . . . . 1 . . . . . . . . . 1 . . . . . 1 . . . . . . . . . . 3 . Interference 25 | . . . . . . 1 . . . 2 3 . . . . 2 . . . . . . . . . 4 . . . . 1 12 . Matter Decay 1 | . . . . . . . . . . . . . . . . . . . . . . . . . . . . . . . . 1 . Short Circuit 1 | . . . . . 1 . . . . . . . . . . . . . . . . . . . . . . . . . . . . Damage (minor) 2 | . . . . . . . . . . . . . . . . . . . . . . . . . . . . . . . . 2 . Damage (major) 4 | . . . . . . . . . . . . . . . . . . . . . . . . . . . . . . . 4 . . Siege Activations 108 | . . . . . . . . . . . . . . . . 10 2 6 . 6 12 5 2 . 2 9 3 . 4 1 13 30 3 Total Turns 9696 | . . . . . . . . . . . . . . . . 1359 36 114 . 44 751 91 337 . 60 2067 1250 . 94 817 626 1974 76 Longest Duration 1698 | . . . . . . . . . . . . . . . . 586 18 25 . 14 538 27 295 . 51 1698 1190 . 56 817 360 616 43 Robots Corrupted 10 | . 1 . . . 4 3 . . . . . . . . . . . . . . . . . . . . . . . . . 2 . Combat Hostiles 7 | . 1 . . . 2 2 . . . . . . . . . . . . . . . . . . . . . . . . . 2 . Parts Fried 92 | 2 5 . . 1 16 4 . . . . 14 . . . 1 24 1 . . . 16 . . . . . . . . . . 8 . Impact Corruptions 73 | . . . . . . 2 . . . . 7 . . . . 28 3 2 . . 29 . . . . . . . . . 1 . 1 Robots Melted 15 | . . . . . . 1 . . . . . . . . . . . . . . . . . . . . . . 1 1 3 9 . Combat Hostiles 11 | . . . . . . . . . . . . . . . . . . . . . . . . . . . . . 1 1 1 8 . Parts Melted 58 | . 1 . . . 4 . . . . . . . . . . . . . . . 3 . . . . 1 2 . . 1 4 42 . Heat Transferred 43366 | . 550 . . 150 2765 2491 37 100 . 300 374 . . . 150 . . . . . 800 . . 259 . 1700 2721 . 1073 2064 3281 23838 713 Parts Sabotaged 8 | . . . . . . . . . . . 2 . . . . 6 . . . . . . . . . . . . . . . . . Parts Stolen . | . . . . . . . . . . . . . . . . . . . . . . . . . . . . . . . . . . Parts Stripped . | . . . . . . . . . . . . . . . . . . . . . . . . . . . . . . . . . . Power Chain Reactions 85 | . 7 . . 2 12 3 . . . . 3 . . . 1 1 . . . . 7 1 1 . . 15 11 . . 7 5 9 . Missiles Intercepted 49 | . . . . . . . . . . . . . . . . . . . . . . . . . . . . . . . . 49 . Alert | -11 -10 -10 -10 -9 -8 -7 -7 -7 -7 -6 -6 -6 -6 -6 -5 -5 -5 -5 -5 -4 -4 -4 -4 -4 -3 -3 -3 -3 -2 -2 -1 -1 -1 ------- Run | Scr Mat Min Exi Min Mat Fac Low Low Dat Pro Fac Low Low Zio Pro Fac Upp Upp War Pro Fac Upp Upp Zhi Pro Res Arm Lab Res Tes Acc Com Ac0 Peak Influence 11315 | 10 258 44 . 139 1418 2992 . . . . 3730 . . . . 4288 . . . . 4367 . . . . 4452 6101 . 200 5853 8972 11315 . Initial 5741 | . 6 39 . . 43 638 . . . . . . . . . 2 . . . . 154 . . . . 20 2337 . . 112 3511 5741 . Average 3422 | 4 89 40 . 31 771 1343 . . . . 1177 . . . . 1321 . . . . 1727 . . . . 1734 4743 . 44 4955 7495 10313 . Maximum Alert Level 5 | . 1 . . . 4 5 . . . . 5 . . . . 5 . . . . 5 . . . . 5 5 . 1 5 5 5 . Low Security (%) 30 | 100 86 100 . 100 10 . . . . . 30 . . . . 21 . . . . 18 . . . . 12 . . 95 . . 50 . Level 1 5 | . 13 . . . 17 . . . . . 8 . . . . 11 . . . . 10 . . . . 6 . . 4 . . . . Level 2 4 | . . . . . 21 10 . . . . 7 . . . . 2 . . . . 14 . . . . 4 . . . . . . . Level 3 9 | . . . . . 13 32 . . . . 15 . . . . 17 . . . . 8 . . . . 22 . . . . . . . Level 4 8 | . . . . . 36 31 . . . . 6 . . . . 20 . . . . 9 . . . . 9 . . . . . . . Level 5 5 | . . . . . . 11 . . . . 14 . . . . . . . . . . . . . . 17 15 . . . 6 1 . High Security 32 | . . . . . . 13 . . . . 17 . . . . 24 . . . . 37 . . . . 28 84 . . . 93 47 . Max Security 3 | . . . . . . . . . . . . . . . . . . . . . . . . . . . . . . 99 . . . Sterilizations 8 | . . . . . 1 . . . . . 1 . . . . 1 . . . . 1 . . . . 1 1 . . 1 1 . . Squads Dispatched 389 | . 5 . . 1 11 46 . . . 1 45 . . . . 42 . 1 . 1 43 . . . . 50 36 . 1 42 26 38 . Investigation 42 | . 2 . . . 5 5 . . . . 7 . . . . 8 . . . . 8 . . . . 6 . . . . . 1 . Extermination 32 | . . . . . . 5 . . . . 6 . . . . 6 . . . . 4 . . . . 10 1 . . . . . . Reinforcement 40 | . 3 . . . 1 7 . . . . 9 . . . . 2 . . . . 4 . . . . 7 1 . 1 . 4 1 . Assault 273 | . . . . 1 3 29 . . . 1 23 . . . . 26 . 1 . 1 27 . . . . 27 34 . . 42 22 36 . Garrison 2 | . . . . . 2 . . . . . . . . . . . . . . . . . . . . . . . . . . . . Intercept . | . . . . . . . . . . . . . . . . . . . . . . . . . . . . . . . . . . Searches Triggered 1 | . . . . . . . . . . . 1 . . . . . . . . . . . . . . . . . . . . . . Data Miner Redirects 25 | . . . . . . . . . . . 6 . . . . 4 . . . . 6 . . . . 8 . . . . . 1 . Construction Impeded 19 | . . . . . . 5 . . . . 9 . . . . 1 . . . . . . . . . 1 . . . . 3 . . Haulers Reinforced 3 | . . . . . . . . . . . . . . . . 1 . . . . 1 . . . . 1 . . . . . . . Active Scanning Responses . | . . . . . . . . . . . . . . . . . . . . . . . . . . . . . . . . . . Cargo Convoy Interrupts 1 | . . . . . . . . . . . . . . . . 1 . . . . . . . . . . . . . . . . . Stealth | -11 -10 -10 -10 -9 -8 -7 -7 -7 -7 -6 -6 -6 -6 -6 -5 -5 -5 -5 -5 -4 -4 -4 -4 -4 -3 -3 -3 -3 -2 -2 -1 -1 -1 --------- Run | Scr Mat Min Exi Min Mat Fac Low Low Dat Pro Fac Low Low Zio Pro Fac Upp Upp War Pro Fac Upp Upp Zhi Pro Res Arm Lab Res Tes Acc Com Ac0 Distress Signals 32 | . 2 . . . 2 . . . . . 5 . . . . 1 . . . . 10 . . . . 3 . . 6 . 2 1 . Communications Jammed 15 | . . . . . . . . . . . . . . . . . . . . . . . . . . 15 . . . . . . . Distress Signals 11 | . . . . . . . . . . . . . . . . . . . . . . . . . . 11 . . . . . . . Times Spotted 1531 | . 25 . . 6 77 175 3 8 . 15 150 12 12 . 10 123 9 25 9 24 190 15 8 . 3 151 108 . 17 50 133 149 24 Peak Tracking Total 22 | . 4 . . 4 4 20 3 4 . 6 13 7 4 . 4 17 4 8 10 10 16 4 5 . 2 13 20 . 6 22 16 19 12 Tactical Retreats 64 | . 3 . . . 3 9 . . . . 8 . . . . 5 . 2 . 2 14 2 . . . 8 2 . . 3 1 2 . Traps | -11 -10 -10 -10 -9 -8 -7 -7 -7 -7 -6 -6 -6 -6 -6 -5 -5 -5 -5 -5 -4 -4 -4 -4 -4 -3 -3 -3 -3 -2 -2 -1 -1 -1 ------- Run | Scr Mat Min Exi Min Mat Fac Low Low Dat Pro Fac Low Low Zio Pro Fac Upp Upp War Pro Fac Upp Upp Zhi Pro Res Arm Lab Res Tes Acc Com Ac0 Traps Triggered 21 | . 3 . . . . 2 . . . . 2 . . . . 2 1 . . . 7 . . . . . . . . 1 . 3 . Indirectly 1 | . 1 . . . . . . . . . . . . . . . . . . . . . . . . . . . . . . . . Trap Hack Attempts . | . . . . . . . . . . . . . . . . . . . . . . . . . . . . . . . . . . Triggered . | . . . . . . . . . . . . . . . . . . . . . . . . . . . . . . . . . . Disarmed 6 | . . . . . . . . . . . . . . . . 6 . . . . . . . . . . . . . . . . . Reprogrammed 14 | . . . . . . . . . . . 1 . . . . 8 . . . . 5 . . . . . . . . . . . . Reused 4 | . . . . . . . . . . . 1 . . . . 2 . . . . 1 . . . . . . . . . . . . Traps Extracted . | . . . . . . . . . . . . . . . . . . . . . . . . . . . . . . . . . . Installed . | . . . . . . . . . . . . . . . . . . . . . . . . . . . . . . . . . . Triggered 16 | . . . . . 1 . . 1 . . 1 . . . . 4 . . 5 2 1 1 . . . . . . . . . . . Most Traps Carried 1 | . . . . . . . . . . . . . . . . . . 1 . . . . . . . . . . . . . . . Machines | -11 -10 -10 -10 -9 -8 -7 -7 -7 -7 -6 -6 -6 -6 -6 -5 -5 -5 -5 -5 -4 -4 -4 -4 -4 -3 -3 -3 -3 -2 -2 -1 -1 -1 ---------- Run | Scr Mat Min Exi Min Mat Fac Low Low Dat Pro Fac Low Low Zio Pro Fac Upp Upp War Pro Fac Upp Upp Zhi Pro Res Arm Lab Res Tes Acc Com Ac0 Machines Disabled 106 | . 1 . . . 9 2 . 2 . 1 17 . 1 . 1 8 . . . 1 15 2 . 1 . 3 9 . . 4 9 18 2 Max in Single Turn 7 | . 1 . . . 2 1 . 1 . 1 7 . 1 . 1 2 . . . . 6 2 . 1 . 1 3 . . 1 1 2 1 Garrison Access 9 | . . . . . 1 1 . . . . 3 . . . . 1 . . . . 2 . . . . . . . . 1 . . . Energy Cycler 1 | . . . . . . . . . . . . . . . . . . . . . . . . . . . . . . . 1 . . Machines Sabotaged . | . . . . . . . . . . . . . . . . . . . . . . . . . . . . . . . . . . Garrisons Compromised 1 | . . . . . . . . . . . . . . . . 1 . . . . . . . . . . . . . . . . . Overloaded Fab Kills . | . . . . . . . . . . . . . . . . . . . . . . . . . . . . . . . . . . Hacking | -11 -10 -10 -10 -9 -8 -7 -7 -7 -7 -6 -6 -6 -6 -6 -5 -5 -5 -5 -5 -4 -4 -4 -4 -4 -3 -3 -3 -3 -2 -2 -1 -1 -1 --------- Run | Scr Mat Min Exi Min Mat Fac Low Low Dat Pro Fac Low Low Zio Pro Fac Upp Upp War Pro Fac Upp Upp Zhi Pro Res Arm Lab Res Tes Acc Com Ac0 Machines Accessed 168 | . 9 . 2 . 12 16 . 2 4 . 32 . . . 1 37 . . 4 . 19 1 . 7 . 21 1 . . . . . . Terminals 85 | . 6 . . . 10 7 . 1 . . 18 . . . . 20 . . . . 10 1 . . . 11 1 . . . . . . Fabricators 21 | . . . . . . 4 . . . . 5 . . . . 6 . . . . 3 . . . . 3 . . . . . . . Repair Stations 8 | . 1 . . . . 1 . . . . . . . . . 2 . . . . 2 . . . . 2 . . . . . . . Recycling Units 21 | . 2 . . . 1 3 . . . . 5 . . . . 6 . . . . 1 . . . . 3 . . . . . . . Scanalyzers 4 | . . . . . . . . . . . 1 . . . . 2 . . . . . . . . . 1 . . . . . . . Garrison Access 10 | . . . . . 1 1 . . . . 3 . . . . 1 . . . . 3 . . . . 1 . . . . . . . Total Hacks 652 | . 24 . 2 . 46 40 . 2 30 . 173 . . . 1 149 . . 4 . 73 5 . 46 . 56 1 . . . . . . Successful 443 | . 15 . 2 . 28 17 . 2 30 . 104 . . . 1 114 . . 4 . 51 5 . 46 . 23 1 . . . . . . Failed 203 | . 8 . . . 17 22 . . . . 68 . . . . 34 . . . . 21 . . . . 33 . . . . . . . Catastrophic 17 | . . . . . 1 3 . . . . 4 . . . . 4 . . . . . . . . . 5 . . . . . . . Database Lockouts 6 | . 1 . . . 1 1 . . . . 1 . . . . 1 . . . . 1 . . . . . . . . . . . . Manual 236 | . 8 . 1 . 39 20 . . . . 60 . 1 . . 59 . . 1 . 27 . . . . 19 . 1 . . . . . Terminals 372 | . 19 . . . 41 20 . 1 . . 116 . . . . 96 . . . . 48 5 . . . 25 1 . . . . . . Fabricators 60 | . . . . . . 8 . . . . 18 . . . . 15 . . . . 9 . . . . 10 . . . . . . . Repair Stations 23 | . 3 . . . . 2 . . . . . . . . . 7 . . . . 7 . . . . 4 . . . . . . . Recycling Units 74 | . 2 . . . 4 9 . . . . 24 . . . . 19 . . . . 4 . . . . 12 . . . . . . . Scanalyzers 20 | . . . . . . . . . . . 6 . . . . 11 . . . . . . . . . 3 . . . . . . . Garrison Access 19 | . . . . . 1 1 . . . . 9 . . . . 1 . . . . 5 . . . . 2 . . . . . . . Terminal Hacks 254 | . 11 . 2 . 18 5 . 2 30 . 49 . . . 1 48 . . 4 . 29 5 . 46 . 3 1 . . . . . . Record 56 | . . . 1 . . . . 1 11 . . . . . 1 . . . 3 . . 5 . 34 . . . . . . . . . Part Schematic 31 | . . . . . 2 . . . 10 . 6 . . . . 7 . . . . 2 . . 4 . . . . . . . . . Robot Schematic 6 | . . . . . . . . . 6 . . . . . . . . . . . . . . . . . . . . . . . . Robot Analysis 35 | . 5 . . . 10 1 . . . . 7 . . . . 7 . . . . 1 . . 4 . . . . . . . . . Prototype ID Bank 22 | . 1 . . . 2 1 . . 3 . 5 . . . . 5 . . . . 1 . . 4 . . . . . . . . . Open Door 4 | . . . . . . . . 1 . . . . . . . . . . 1 . 1 . . . . . 1 . . . . . . Branch Access Points 4 | . . . . . 1 1 . . . . 1 . . . . . . . . . 1 . . . . . . . . . . . . Emergency Access Points 3 | . . . . . . . . . . . 2 . . . . 1 . . . . . . . . . . . . . . . . . Machine Index 3 | . . . . . . . . . . . 1 . . . . 1 . . . . 1 . . . . . . . . . . . . Terminal Index 3 | . . . . . . . . . . . . . . . . 1 . . . . 1 . . . . 1 . . . . . . . Recycling Unit Index 3 | . . . . . . . . . . . . . . . . 1 . . . . 1 . . . . 1 . . . . . . . Alert Level 4 | . . . . . . . . . . . 2 . . . . 1 . . . . 1 . . . . . . . . . . . . Unreport Threat 8 | . 2 . . . . . . . . . 1 . . . . 1 . . . . 4 . . . . . . . . . . . . Locate Traps 11 | . 1 . . . 2 1 . . . . 5 . . . . 2 . . . . . . . . . . . . . . . . . Disarm Traps 1 | . . . . . . . . . . . . . . . . 1 . . . . . . . . . . . . . . . . . Reprogram Traps 5 | . . . . . . . . . . . 1 . . . . 2 . . . . 2 . . . . . . . . . . . . Maintenance Status 3 | . . . . . . . . . . . . . . . . 1 . . . . 1 . . . . 1 . . . . . . . Security Status 1 | . . . . . . . . . . . . . . . . 1 . . . . . . . . . . . . . . . . . Surveillance Status 3 | . . . . . . . . . . . 1 . . . . 1 . . . . 1 . . . . . . . . . . . . Patrol Status 5 | . . . . . . . . . . . 3 . . . . 1 . . . . 1 . . . . . . . . . . . . Transport Status 2 | . . . . . . . . . . . 1 . . . . 1 . . . . . . . . . . . . . . . . . Extermination Status 2 | . . . . . . . . . . . . . . . . . . . . . 2 . . . . . . . . . . . . Recall Investigation 2 | . . . . . . . . . . . . . . . . 1 . . . . 1 . . . . . . . . . . . . Recall Extermination 3 | . . . . . . . . . . . . . . . . 1 . . . . 2 . . . . . . . . . . . . Recall Reinforcements 2 | . . . . . . . . . . . 1 . . . . . . . . . 1 . . . . . . . . . . . . Recall Assault 2 | . . . . . . . . . . . . . . . . . . . . . 2 . . . . . . . . . . . . Hauler Manifests 7 | . . . . . 1 1 . . . . 2 . . . . 2 . . . . 1 . . . . . . . . . . . . Registered Components 2 | . . . . . . . . . . . 1 . . . . 1 . . . . . . . . . . . . . . . . . Registered Prototypes 2 | . . . . . . . . . . . 1 . . . . 1 . . . . . . . . . . . . . . . . . Zone Layout 18 | . 2 . . . . . . . . . 8 . . . . 7 . . . . 1 . . . . . . . . . . . . EX-Prototype ID Bank 1 | . . . 1 . . . . . . . . . . . . . . . . . . . . . . . . . . . . . . Fabricator Hacks 41 | . . . . . . 5 . . . . 13 . . . . 12 . . . . 6 . . . . 5 . . . . . . . Network Status 6 | . . . . . . 1 . . . . 1 . . . . 2 . . . . 1 . . . . 1 . . . . . . . Load Schematic 18 | . . . . . . 2 . . . . 6 . . . . 5 . . . . 3 . . . . 2 . . . . . . . Build 17 | . . . . . . 2 . . . . 6 . . . . 5 . . . . 2 . . . . 2 . . . . . . . Repair Station Hacks 16 | . 2 . . . . 1 . . . . . . . . . 6 . . . . 5 . . . . 2 . . . . . . . Scan Component 9 | . 1 . . . . 1 . . . . . . . . . 3 . . . . 3 . . . . 1 . . . . . . . Repair 7 | . 1 . . . . . . . . . . . . . . 3 . . . . 2 . . . . 1 . . . . . . . Recycling Unit Hacks 15 | . 2 . . . 1 . . . . . 4 . . . . 6 . . . . 1 . . . . 1 . . . . . . . Retrieve Matter 1 | . . . . . . . . . . . 1 . . . . . . . . . . . . . . . . . . . . . . Retrieve Components 14 | . 2 . . . 1 . . . . . 3 . . . . 6 . . . . 1 . . . . 1 . . . . . . . Scanalyzer 18 | . . . . . . . . . . . 5 . . . . 11 . . . . . . . . . 2 . . . . . . . Insert Component 8 | . . . . . . . . . . . 2 . . . . 5 . . . . . . . . . 1 . . . . . . . Analyze 10 | . . . . . . . . . . . 3 . . . . 6 . . . . . . . . . 1 . . . . . . . Garrison Access Hacks 8 | . . . . . 1 1 . . . . 3 . . . . 1 . . . . 2 . . . . . . . . . . . . Unlock Access 1 | . . . . . 1 . . . . . . . . . . . . . . . . . . . . . . . . . . . . Seal Access 7 | . . . . . . 1 . . . . 3 . . . . 1 . . . . 2 . . . . . . . . . . . . Unauthorized Hacks 91 | . . . . . 8 5 . . . . 30 . . . . 30 . . . . 8 . . . . 10 . . . . . . . Terminals 54 | . . . . . 5 3 . . . . 19 . . . . 20 . . . . 5 . . . . 2 . . . . . . . Track 12 | . . . . . 1 . . . . . 6 . . . . 4 . . . . 1 . . . . . . . . . . . . Assimilate 17 | . . . . . 2 1 . . . . 6 . . . . 6 . . . . 1 . . . . 1 . . . . . . . Botnet 23 | . . . . . 2 2 . . . . 6 . . . . 9 . . . . 3 . . . . 1 . . . . . . . Operators 2 | . . . . . . . . . . . 1 . . . . 1 . . . . . . . . . . . . . . . . . Fabricators 1 | . . . . . . . . . . . 1 . . . . . . . . . . . . . . . . . . . . . . Fabnet 1 | . . . . . . . . . . . 1 . . . . . . . . . . . . . . . . . . . . . . Repair Stations . | . . . . . . . . . . . . . . . . . . . . . . . . . . . . . . . . . . Recycling Units 36 | . . . . . 3 2 . . . . 10 . . . . 10 . . . . 3 . . . . 8 . . . . . . . Reject 13 | . . . . . 1 . . . . . 4 . . . . 4 . . . . 1 . . . . 3 . . . . . . . Recyclers 5 | . . . . . 1 . . . . . 1 . . . . . . . . . 1 . . . . 2 . . . . . . . Mask 18 | . . . . . 1 2 . . . . 5 . . . . 6 . . . . 1 . . . . 3 . . . . . . . Scanalyzers . | . . . . . . . . . . . . . . . . . . . . . . . . . . . . . . . . . . Garrison Access . | . . . . . . . . . . . . . . . . . . . . . . . . . . . . . . . . . . Data Cores Recovered . | . . . . . . . . . . . . . . . . . . . . . . . . . . . . . . . . . . Used . | . . . . . . . . . . . . . . . . . . . . . . . . . . . . . . . . . . Hacking Detections 131 | . 7 . . . 12 15 . . . . 28 . . . . 30 . . . . 16 1 . . . 21 1 . . . . . . Full Trace Events 39 | . 1 . . . 4 5 . . . . 6 . . . . 8 . . . . 8 1 . . . 6 . . . . . . . Feedback Events 5 | . . . . . 1 . . . . . . . . . . 1 . . . . 2 1 . . . . . . . . . . . Corruption 4 | . . . . . 1 . . . . . . . . . . 1 . . . . 1 1 . . . . . . . . . . . Hackware Fried 1 | . . . . . . . . . . . . . . . . . . . . . 1 . . . . . . . . . . . . Feedback Blocked . | . . . . . . . . . . . . . . . . . . . . . . . . . . . . . . . . . . Robot Schematics Acquired 8 | . . . . . . . . . 6 . . . . 2 . . . . . . . . . . . . . . . . . . . Robots Built 5 | . . . . . . . . . . . 3 . . . . 2 . . . . . . . . . . . . . . . . . Authchips 1 | . . . . . . . . . . . 1 . . . . . . . . . . . . . . . . . . . . . . Time 245 | . . . . . . . . . . . 169 . . . . 76 . . . . . . . . . . . . . . . . . Total Robot Build Rating 28 | . . . . . . . . . . . 18 . . . . 10 . . . . . . . . . . . . . . . . . Part Schematics Acquired 54 | . . . . . 2 . . . 10 . 8 . . 15 . 12 . . . . 2 . . 4 . 1 . . . . . . . Parts Built 19 | . . . . . . 3 . . . . 6 . . . . 6 . . . . 2 . . . . 2 . . . . . . . Authchips . | . . . . . . . . . . . . . . . . . . . . . . . . . . . . . . . . . . Time 1140 | . . . . . . 124 . . . . 248 . . . . 239 . . . . 280 . . . . 249 . . . . . . . Total Part Build Rating 101 | . . . . . . 7 . . . . 30 . . . . 36 . . . . 14 . . . . 14 . . . . . . . Parts Repaired 7 | . 1 . . . . . . . . . . . . . . 3 . . . . 2 . . . . 1 . . . . . . . Time 227 | . 26 . . . . . . . . . . . . . . 96 . . . . 87 . . . . 18 . . . . . . . Parts Recycled . | . . . . . . . . . . . . . . . . . . . . . . . . . . . . . . . . . . Recycled Matter . | . . . . . . . . . . . . . . . . . . . . . . . . . . . . . . . . . . Retrieved Matter . | . . . . . . . . . . . . . . . . . . . . . . . . . . . . . . . . . . Retrieved Components 57 | . 15 . . . 9 . . . . . 7 . . . . 13 . . . . 10 . . . . 3 . . . . . . . Parts Scanalyzed 8 | . . . . . . . . . . . 2 . . . . 5 . . . . . . . . . 1 . . . . . . . Part Schematics Acquired 8 | . . . . . . . . . . . 2 . . . . 5 . . . . . . . . . 1 . . . . . . . Parts Damaged 2 | . . . . . . . . . . . . . . . . 2 . . . . . . . . . . . . . . . . . Bothacking | -11 -10 -10 -10 -9 -8 -7 -7 -7 -7 -6 -6 -6 -6 -6 -5 -5 -5 -5 -5 -4 -4 -4 -4 -4 -3 -3 -3 -3 -2 -2 -1 -1 -1 ------------ Run | Scr Mat Min Exi Min Mat Fac Low Low Dat Pro Fac Low Low Zio Pro Fac Upp Upp War Pro Fac Upp Upp Zhi Pro Res Arm Lab Res Tes Acc Com Ac0 Used RIF Installer . | . . . . . . . . . . . . . . . . . . . . . . . . . . . . . . . . . . Robots Hacked 4 | . . . . . . . . 1 3 . . . . . . . . . . . . . . . . . . . . . . . . Non-combat 1 | . . . . . . . . 1 . . . . . . . . . . . . . . . . . . . . . . . . . Combat 3 | . . . . . . . . . 3 . . . . . . . . . . . . . . . . . . . . . . . . Robot Hacks Applied 4 | . . . . . . . . 1 3 . . . . . . . . . . . . . . . . . . . . . . . . parse_system 4 | . . . . . . . . 1 3 . . . . . . . . . . . . . . . . . . . . . . . . Relay Couplers Released 7 | . . . . . . . . . . . 3 . . . . . . . . . . . . . . . . . 4 . . . . Programmers 7 | . . . . . . . . . . . 3 . . . . . . . . . . . . . . . . . 4 . . . . Fabnet Peak Effective % . | . . . . . . . . . . . . . . . . . . . . . . . . . . . . . . . . . . Robots Rewired 28 | . . . . . . 1 2 4 . 1 . 2 . . . . . 2 5 2 . . . . . . 8 . . 1 . . . Allies Hacked 1 | . . . . . . . . . . . 1 . . . . . . . . . . . . . . . . . . . . . . Hacks Repelled . | . . . . . . . . . . . . . . . . . . . . . . . . . . . . . . . . . . Allies | -11 -10 -10 -10 -9 -8 -7 -7 -7 -7 -6 -6 -6 -6 -6 -5 -5 -5 -5 -5 -4 -4 -4 -4 -4 -3 -3 -3 -3 -2 -2 -1 -1 -1 -------- Run | Scr Mat Min Exi Min Mat Fac Low Low Dat Pro Fac Low Low Zio Pro Fac Upp Upp War Pro Fac Upp Upp Zhi Pro Res Arm Lab Res Tes Acc Com Ac0 Total Allies 56 | . . . . 3 2 1 2 4 . 2 5 2 . 3 . 6 . 2 5 2 1 . . . . 1 8 . . 1 3 3 . Largest Group 6 | . . . . 3 1 1 1 4 3 3 3 2 2 3 3 2 . 2 5 6 5 . . . . 1 5 . . 1 4 3 . Highest-Rated Group 527 | . . . . 72 10 16 31 95 70 128 90 61 61 85 85 82 . 79 242 265 214 . . . . 26 256 . . 153 527 372 . Highest-Rated Ally 153 | . . . . 31 10 16 31 31 25 96 30 32 32 31 31 41 . 49 65 65 65 . . . . 26 56 . . 153 153 131 . Total Orders 35 | . . . . . . . . . . . . . . . . . . 5 . . . 6 8 . 3 . . . 4 . . 5 4 STAY 1 | . . . . . . . . . . . . . . . . . . . . . . . 1 . . . . . . . . . . EXPLORE 25 | . . . . . . . . . . . . . . . . . . 3 . . . 3 5 . 2 . . . 4 . . 4 4 RETURN 9 | . . . . . . . . . . . . . . . . . . 2 . . . 3 2 . 1 . . . . . . 1 . Ally Attacks 263 | . . . . 7 . 2 2 17 . 24 11 . 8 . 27 8 . 10 22 36 3 . . . . . 17 . . . 66 3 . Total Damage 8655 | . . . . 64 . 30 43 471 . 894 295 . 234 . 481 310 . 220 799 1353 164 . . . . . 602 . . . 2683 12 . Kills 47 | . . . . . . . . 3 . 3 1 . 1 . 1 2 . . 5 8 1 . . . . . 4 . . . 18 . . Allies Corrupted 4 | . . . . . . . 1 . . . 1 . . . . . . . . . . . . . . . . . . . 1 1 . Allies Melted 6 | . . . . . . . . 1 . 1 . . . . . . . . 1 . . . . . . . 2 . 1 . . . . Intel | -11 -10 -10 -10 -9 -8 -7 -7 -7 -7 -6 -6 -6 -6 -6 -5 -5 -5 -5 -5 -4 -4 -4 -4 -4 -3 -3 -3 -3 -2 -2 -1 -1 -1 ------- Run | Scr Mat Min Exi Min Mat Fac Low Low Dat Pro Fac Low Low Zio Pro Fac Upp Upp War Pro Fac Upp Upp Zhi Pro Res Arm Lab Res Tes Acc Com Ac0 Robot Analysis Total 35 | . 5 . . . 10 1 . . . . 7 . . . . 7 . . . . 1 . . 4 . . . . . . . . . Derelict Logs Recovered 16 | . . 1 . 1 . . 2 . . 2 . 1 1 2 . . 1 1 . 1 . 2 1 . . . . . . . . . . Drone Launches 32 | . . . . . . . . . . . . . . . . . . 4 . . . 3 4 . 2 . . . 4 . . 11 4 Drone Recoveries 13 | . . . . . . . . . . . . . . . . . . 3 . . . 2 4 . 1 . . . 1 . . 1 1 Decoded 0b10 Intel 31 | . . . . . . . . . . . . . . . . 31 . . . . . . . . . . . . . . . . . Traps 30 | . . . . . . . . . . . . . . . . 30 . . . . . . . . . . . . . . . . . Exits 1 | . . . . . . . . . . . . . . . . 1 . . . . . . . . . . . . . . . . . Exploration | -11 -10 -10 -10 -9 -8 -7 -7 -7 -7 -6 -6 -6 -6 -6 -5 -5 -5 -5 -5 -4 -4 -4 -4 -4 -3 -3 -3 -3 -2 -2 -1 -1 -1 ------------- Run | Scr Mat Min Exi Min Mat Fac Low Low Dat Pro Fac Low Low Zio Pro Fac Upp Upp War Pro Fac Upp Upp Zhi Pro Res Arm Lab Res Tes Acc Com Ac0 Turns Passed 85450 | 63 1482 144 695 1032 4220 4277 1119 875 130 1449 7401 3195 2686 1766 1111 5542 1523 1796 1442 1474 4399 1352 1191 435 696 5910 2684 48 1524 2393 2680 18140 576 Spaces Moved 53465 | 16 770 91 448 634 1521 2812 745 548 92 409 5723 1535 1335 916 541 9815 904 967 818 851 3860 423 324 231 351 3914 503 19 561 647 1143 9385 613 Core 19 | . . . . . . . . . . . . . . . . . . . . . . . . . . 1 . . . . . 18 . Treads 19731 | 16 166 . . . 612 55 . . . 242 3 . . . . 475 904 967 818 851 1167 423 324 231 351 879 503 19 561 647 1143 8326 48 Legs 233 | . . . . . . . . . . 102 131 . . . . . . . . . . . . . . . . . . . . . . Wheels 10490 | . 604 91 448 634 909 861 745 548 92 65 1028 1535 1335 916 541 138 . . . . . . . . . . . . . . . . . Hover 862 | . . . . . . . . . . . . . . . . . . . . . . . . . . . . . . . . 297 565 Flight 22130 | . . . . . . 1896 . . . . 4561 . . . . 9202 . . . . 2693 . . . . 3034 . . . . . 744 . Fastest Speed 10 | 160 140 155 155 150 125 26 130 145 130 145 24 190 165 190 150 15 160 160 160 160 15 240 240 160 160 20 233 241 233 230 148 10 36 Average Speed 108 | 160 156 155 155 156 189 80 138 145 131 315 58 196 190 190 187 27 160 160 160 160 61 240 240 162 160 67 240 241 233 231 148 134 54 Slowest Speed 485 | 160 320 155 155 165 250 321 145 145 145 485 421 205 205 190 190 160 160 160 240 160 240 240 240 240 160 241 241 241 241 233 152 225 142 Overloaded Moves 47 | . . . . . . . . . . . 12 . . . . . . . . . . . . . . . . . . . . . 35 Propulsion Burnouts . | . . . . . . . . . . . . . . . . . . . . . . . . . . . . . . . . . . Robots Hopped 144 | . . . . . . 10 . 1 . . 43 . . . . 58 . . . . 23 . . . . 8 . . . . . 1 . Cave-ins Triggered 1 | . . . . . . . . . . . . . . . . . . . . . . . . . . 1 . . . . . . . Teleports 1 | . . . . . . . . . . . . . . . . . . . . . . . . . . . . . . . . 1 . Exploration Rate (%) 70 | 4 96 21 72 92 98 41 80 69 74 58 88 98 98 85 68 94 98 95 92 96 52 98 98 62 54 58 50 26 28 77 34 89 41 Regions Visited 33 Branch Regions 24 Pre-discovered Areas 9 | . . 1 1 . . . . . 1 . . . . 2 . . . . . . . 1 . 3 . . . . . . . . . Known Exits Taken 10 | . . . . . . 1 . . . . 1 . . . . 1 1 . . 1 1 . . . 1 1 . . 1 . 1 . . Unknown Exits Taken 23 | 1 1 1 1 1 1 . 1 1 1 1 . 1 1 1 1 . . 1 1 . . 1 1 1 . . 1 1 . 1 . 1 . Scrap Searched 37 | . . 1 . 3 . . 1 2 . 1 . 2 3 5 2 . 3 4 . 4 . 3 2 . 1 . . . . . . . . Spaces Dug 739 | . . . . . 28 16 . . . . 112 2 . . . 185 . . 6 . 107 2 1 . . 110 38 . 12 14 25 81 . Terrain Destroyed 8174 | . 19 . . 30 148 392 1 3 . 62 738 112 106 . 36 742 22 27 7 11 860 155 107 . 9 1103 836 . 42 527 1086 864 129 Melee 305 | . . . . . . 5 . . . . 74 . . . . 118 . . . . 52 . . . . 56 . . . . . . . Projectile 830 | . . . . . . 14 1 3 . 3 96 13 14 . 18 46 9 27 7 11 139 32 16 . 9 104 17 . 42 17 56 107 29 AOE 7039 | . 19 . . 30 148 373 . . . 59 568 99 92 . 18 578 13 . . . 669 123 91 . . 943 819 . . 510 1030 757 100 Terrain Rammed . | . . . . . . . . . . . . . . . . . . . . . . . . . . . . . . . . . . Walls Destroyed . | . . . . . . . . . . . . . . . . . . . . . . . . . . . . . . . . . . Machines Disabled . | . . . . . . . . . . . . . . . . . . . . . . . . . . . . . . . . . . Actions | -11 -10 -10 -10 -9 -8 -7 -7 -7 -7 -6 -6 -6 -6 -6 -5 -5 -5 -5 -5 -4 -4 -4 -4 -4 -3 -3 -3 -3 -2 -2 -1 -1 -1 --------- Run | Scr Mat Min Exi Min Mat Fac Low Low Dat Pro Fac Low Low Zio Pro Fac Upp Upp War Pro Fac Upp Upp Zhi Pro Res Arm Lab Res Tes Acc Com Ac0 Total 75927 | 42 930 93 449 660 2584 4426 807 621 99 500 9245 1654 1422 943 601 12250 963 1163 942 941 5423 701 681 288 469 6691 1794 21 699 1441 1901 13719 764 Wait 14272 | 14 47 . . 6 756 1026 . 9 3 3 2659 64 17 . 6 1428 21 105 53 40 824 210 306 . 107 1964 949 . 32 629 413 2548 33 Move 53159 | 15 769 90 447 633 1520 2792 744 545 91 408 5642 1534 1334 915 540 9705 903 966 817 850 3814 422 323 230 350 3897 502 18 560 646 1142 9382 613 Hop 129 | . . . . . . 9 . 1 . . 37 . . . . 51 . . . . 22 . . . . 8 . . . . . 1 . Pick Up 883 | 2 24 1 1 3 32 80 18 7 . 12 101 1 6 4 1 190 2 4 4 . 78 3 1 8 . 81 5 . 6 11 12 175 10 Fast Attach 580 | 1 4 . . . 24 15 4 . 1 3 64 6 5 7 3 83 2 9 9 . 29 5 1 17 2 53 15 . 12 11 33 155 7 Attach 361 | 1 3 . . . 11 57 7 . . 17 30 . 3 2 1 47 3 . 1 . 50 1 2 2 . 47 5 . 2 7 3 40 19 Detach 222 | 1 . . . . 2 28 3 . . . 35 . . 1 . 45 1 . 1 . 37 . . . . 34 5 . . 4 3 20 2 Swap 891 | 1 5 . . 4 33 83 . 1 . 4 86 8 5 2 6 67 4 8 1 . 74 13 8 . 2 101 85 3 23 29 54 166 15 Drop 1213 | 1 15 1 1 5 55 60 1 7 1 2 136 4 7 11 2 246 1 13 14 . 80 7 1 22 1 123 17 . 17 21 45 284 12 Fire 3456 | 6 62 1 . 8 150 262 12 5 . 50 360 28 45 . 41 205 21 51 11 38 304 40 39 8 7 274 133 . 47 79 189 932 48 Melee 452 | . . . . . . 8 . 2 3 . 88 . . 1 1 165 . . . . 72 . . . . 103 . . . . . 4 5 Ram 5 | . . . . 1 1 . 3 . . . . . . . . . . . . . . . . . . . . . . . . . . Kick . | . . . . . . . . . . . . . . . . . . . . . . . . . . . . . . . . . . Crush 12 | . 1 . . . . . . . . . . . . . . . 5 . . . 5 . . . . . . . . . 1 . . Escape Stasis 77 | . . . . . . . . . . . 7 . . . . 18 . . . . 34 . . . . 6 6 . . . 6 . . Rewire 211 | . . . . . . 6 15 44 . 1 . 9 . . . . . 7 31 13 . . . 1 . . 72 . . 4 . 8 . Trap . | . . . . . . . . . . . . . . . . . . . . . . . . . . . . . . . . . . Miscellaneous 4 | . . . . . . . . . . . . . . . . . . . . . . . . . . . . . . . . 4 . Route ------- -11/Scrapyard -10/Materials (discovered 5 exits: [*Mat x3] / [*Min x2]) -10/Mines -10/Exiles (discovered 2 exits: [*Min x2]) -9/Mines -8/Materials (discovered 3 exits: *Fac x3) -7/Factory (discovered 4 exits: *Fac / Sto / *Low x2) -7/Lower Caves -7/Lower Caves (discovered 2 exits: *Fac / *Dat) -7/Data Miner -6/Proximity Caves -6/Factory (discovered 5 exits: *Fac x3 / *Low x2) -6/Lower Caves -6/Lower Caves (discovered 2 exits: *Fac / [*Zio]) -6/Zion -5/Proximity Caves -5/Factory (discovered 6 exits: *Fac x4 / *Upp x2) -5/Upper Caves -5/Upper Caves (discovered 2 exits: *Fac / *War) -5/Warlord -4/Proximity Caves -4/Factory (discovered 7 exits: *Res x3 / *Upp x2 / *Ext x2) -4/Upper Caves -4/Upper Caves (discovered 2 exits: *Res / *Zhi) -4/Zhirov -3/Proximity Caves -3/Research (discovered 4 exits: [*Res x2] / *Arm / [*Qua]) -3/Armory -3/Lab -2/Research -2/Testing -1/Access (discovered 2 exits: Sur / *Com) -1/Command (discovered 3 exits: *Sur x2 / [*Ac0]) -1/Access_0 History --------- Turn | Location | Event 33 | -11/Scrapyard | Discovered new exit (range 3) 64 | -11/Scrapyard | Entered Materials 96 | -10/Materials | Discovered new exit (range 15) 260 | -10/Materials | Central database locked down 311 | -10/Materials | Build established: Mutant 377 | -10/Materials | Discovered new exit (range 8) 546 | -10/Materials | Discovered new exit (range 16) 744 | -10/Materials | Discovered new exit (range 10) 917 | -10/Materials | Discovered new exit (range 6) 1491 | -10/Materials | Repaired Lgt. Treads 1546 | -10/Materials | Entered Mines 1619 | -10/Mines | Received a Rocket Launcher from a helpful Derelict 1683 | -10/Mines | Deemed a non-threat by the Exiles lab entrance 1684 | -10/Mines | Discovered new exit (range 5) 1690 | -10/Mines | Entered Exiles 1729 | -10/Exiles | Met 8R-AWN 1754 | -10/Exiles | Met EX-HEX 1833 | -10/Exiles | Met EX-DEC 1867 | -10/Exiles | Learned location of Zion (-6) 1952 | -10/Exiles | Met EX-BIN 1969 | -10/Exiles | Aligned with FarCom system 1971 | -10/Exiles | Given EX-Vault access code 2010 | -10/Exiles | Opened EX-Vault 2021 | -10/Exiles | Found Cloak of Protection 2055 | -10/Exiles | Warned to stay clear of 0b10 Research branches 2188 | -10/Exiles | Discovered new exit (range 10) 2360 | -10/Exiles | Discovered new exit (range 15) 2385 | -10/Exiles | Left Exiles lab with Cloak of Protection 2385 | -10/Exiles | Entered Mines 2504 | -9/Mines | Discovered new exit (range 7) 2538 | -9/Mines | A weapon hastily lodged in a ceiling crevice suddenly fell to the ground 2841 | -9/Mines | Met a Derelict testing a Signal Generator 3376 | -9/Mines | Core integrity fell below 50% 3417 | -9/Mines | Entered Materials 3417 | -8/Materials | Evolved 4 slots: Propulsion x2, Utility x2 3898 | -8/Materials | Destroyed 7 combat bots 4161 | -8/Materials | Build established: Skirmisher 4410 | -8/Materials | Discovered new exit (range 16) 4635 | -8/Materials | Garrison activated, responded to threat 4832 | -8/Materials | Garrison activated, responded to threat 4895 | -8/Materials | Identified exit to Garrison 5310 | -8/Materials | Discovered new exit (range 11) 5395 | -8/Materials | Central database locked down 5442 | -8/Materials | Build established: Mutant 5817 | -8/Materials | First assault squad dispatched 6009 | -8/Materials | Discovered new exit (range 11) 7139 | -8/Materials | Sterilization system engaged 7139 | -8/Materials | Non-combat units ordered to evacuate 7239 | -8/Materials | Combat units ordered to evacuate 7439 | -8/Materials | Ambient heat levels rising (+10) 7589 | -8/Materials | Ambient heat levels rising (+10) 7637 | -8/Materials | Entered Factory 7637 | -7/Factory | Evolved 2 slots: Utility x2 7638 | -7/Factory | Identified exit to Storage 7812 | -7/Factory | Fabricated Cargo Storage Unit? 8037 | -7/Factory | First assault squad dispatched 8127 | -7/Factory | Fabricated Lrn. Tractor Beam? 8217 | -7/Factory | Discovered new exit (range 9) 8250 | -7/Factory | Discovered new exit (range 15) 8310 | -7/Factory | Destroyed 8 combat bots 8332 | -7/Factory | Build established: Sprinter 8526 | -7/Factory | Identified exit to Lower Caves 8665 | -7/Factory | Central database locked down 9157 | -7/Factory | Build established: Hauler-Mutant 9537 | -7/Factory | Destroyed 8 combat bots 11324 | -7/Factory | High security lockdown imminent 11404 | -7/Factory | High security lockdown engaged 11624 | -7/Factory | Destroyed 15 combat bots 11690 | -7/Factory | Destroyed 12 combat bots 11754 | -7/Factory | Destroyed 7 combat bots 11889 | -7/Factory | System corruption reached 10% 11890 | -7/Factory | Core integrity fell below 50% 11914 | -7/Factory | Entered Lower Caves 11927 | -7/Lower Caves | Destroyed 11 combat bots 11944 | -7/Lower Caves | Lost 16 parts (1p7n4u4w) 12418 | -7/Lower Caves | Lost 4 parts (2u2w) 12422 | -7/Lower Caves | Learned 4 Factory zone layouts 12733 | -7/Lower Caves | Encountered a Warlord checkpoint 12803 | -7/Lower Caves | Discovered new exit (range 9) 13033 | -7/Lower Caves | Entered another Lower Caves area 13033 | -7/Lower Caves | Accompanied by 1 ally 13149 | -7/Lower Caves | Discovered new exit (range 13) 13178 | -7/Lower Caves | Attacked by a delusional Derelict stockpiling Unaware 13900 | -7/Lower Caves | Discovered new exit (range 6) 13908 | -7/Lower Caves | Entered Data Miner 13908 | -7/Data Miner | Accompanied by 3 allies 13908 | -7/Data Miner | Discovered new exit (range 6) 13935 | -7/Data Miner | Met Data Miner 13982 | -7/Data Miner | Learned location of Section 7 (-2) 13982 | -7/Data Miner | Acquired the access code to Warlord's prototype stash 14000 | -7/Data Miner | Received God Mode back door access code from Data Miner 14038 | -7/Data Miner | Entered Proximity Caves 14038 | -6/Proximity Caves | Accompanied by 3 allies 14040 | -6/Proximity Caves | Attracted the attention of an 0b10 outpost 14095 | -6/Proximity Caves | Lost 4 parts (1n2u1w) 14126 | -6/Proximity Caves | Learned 4 Factory zone layouts 14135 | -6/Proximity Caves | Learned Factory stockpile data 14150 | -6/Proximity Caves | Escorted by Enhanced Grunt 14164 | -6/Proximity Caves | Core integrity fell below 20% 14216 | -6/Proximity Caves | Spotted B-75 Beast 14268 | -6/Proximity Caves | Destroyed B-75 Beast 14274 | -6/Proximity Caves | Lost 4 parts (1n3u) 14641 | -6/Proximity Caves | Attracted the attention of an 0b10 checkpoint 14696 | -6/Proximity Caves | Build established: Scavenger-Mutant 14834 | -6/Proximity Caves | Lost 7 parts (1p2n3u1w) 15112 | -6/Proximity Caves | Discovered new exit (range 13) 15487 | -6/Proximity Caves | Entered Factory 15487 | -6/Factory | Evolved 2 slots: Propulsion x1, Utility x1 16252 | -6/Factory | Fabricated B-60 Warrior? 16275 | -6/Factory | Identified exit to Lower Caves 16331 | -6/Factory | Found Unknown Device 16331 | -6/Factory | Identified Launcher Loader 16340 | -6/Factory | Discovered new exit (range 15) 16638 | -6/Factory | Build established: Hacker-Sprinter 16730 | -6/Factory | Found Prototype Launcher 16730 | -6/Factory | Identified Scatter Rocket Array 16804 | -6/Factory | Found Scatter Rocket Array 16932 | -6/Factory | Found Hvy. Reflective Plating 16933 | -6/Factory | Found Hvy. Reflective Plating 17054 | -6/Factory | Incoming investigation squad redirected 17122 | -6/Factory | Fabricated Lrn. Missile Launcher? 17322 | -6/Factory | Central database locked down 17405 | -6/Factory | Discovered new exit (range 5) 17495 | -6/Factory | Discovered new exit (range 15) 17677 | -6/Factory | Build established: Hacker-Scout 17830 | -6/Factory | Fabricated Adv. Thermal Shield? 17945 | -6/Factory | Fabricated Biomechanical Wings (x1) 17953 | -6/Factory | Fabricated Hvy. Reactive Plating? 18024 | -6/Factory | Build established: Hacker-Sprinter 18203 | -6/Factory | Fabricated Cargo Storage Unit (x1) 18563 | -6/Factory | Build established: Hauler-Mutant 18637 | -6/Factory | Search patrols dispatched 19337 | -6/Factory | First assault squad dispatched 19356 | -6/Factory | Incoming assault squad redirected 19709 | -6/Factory | Incoming assault squad redirected 20406 | -6/Factory | Incoming assault squad redirected 21103 | -6/Factory | Incoming assault squad redirected 21109 | -6/Factory | Incoming assault squad redirected 21569 | -6/Factory | High security lockdown imminent 21596 | -6/Factory | Destroyed 9 combat bots 21649 | -6/Factory | High security lockdown engaged 21754 | -6/Factory | Destroyed 10 combat bots 21889 | -6/Factory | Destroyed 22 combat bots 22014 | -6/Factory | Destroyed 8 combat bots 22014 | -6/Factory | Lost 3 parts (3u) 22081 | -6/Factory | Sterilization system engaged 22081 | -6/Factory | Non-combat units ordered to evacuate 22098 | -6/Factory | Destroyed 10 combat bots 22181 | -6/Factory | Combat units ordered to evacuate 22381 | -6/Factory | Ambient heat levels rising (+10) 22531 | -6/Factory | Ambient heat levels rising (+10) 22681 | -6/Factory | Ambient heat levels rising (+10) 22831 | -6/Factory | Ambient heat levels rising (+10) 22888 | -6/Factory | Entered Lower Caves 23672 | -6/Lower Caves | Ambushed by wild Derelicts 23772 | -6/Lower Caves | Attracted the attention of an 0b10 checkpoint 23921 | -6/Lower Caves | Encountered a Warlord checkpoint 23952 | -6/Lower Caves | Discovered new exit (range 8) 24047 | -6/Lower Caves | Attracted the attention of an 0b10 outpost 24099 | -6/Lower Caves | Destroyed 7 combat bots 26083 | -6/Lower Caves | Entered another Lower Caves area 26083 | -6/Lower Caves | Accompanied by 2 allies 26083 | -6/Lower Caves | Discovered new exit (range 10) 27238 | -6/Lower Caves | Acquired the password to a Derelict Tinkerer's latest research 27343 | -6/Lower Caves | Spotted B-75 Beast 27405 | -6/Lower Caves | Caught by Unaware searching for contraband prototypes 27407 | -6/Lower Caves | Caught by Unaware searching for contraband prototypes 27753 | -6/Lower Caves | Discovered new exit (range 15) 27790 | -6/Lower Caves | Learned 4 Factory zone layouts 28238 | -6/Lower Caves | Destroyed B-75 Beast 28243 | -6/Lower Caves | Lost 3 parts (2n1u) 28769 | -6/Lower Caves | Entered Zion 28845 | -6/Zion | Acquired unknown access codes intercepted by a Zionite 28922 | -6/Zion | Discovered new exit (range 12) 29071 | -6/Zion | System corruption cleaned by Quarantine Array 29225 | -6/Zion | Found Prototype Device 29285 | -6/Zion | Learned Factory emergency access door positions 29287 | -6/Zion | Gained Derelict followers 29538 | -6/Zion | Rebuked by Imprinter 29639 | -6/Zion | Given A8's code to call for help 29799 | -6/Zion | Found Prototype Device 29799 | -6/Zion | Identified Bomb Factory No. 2 30535 | -6/Zion | Entered Proximity Caves 30535 | -5/Proximity Caves | Accompanied by 3 allies 30553 | -5/Proximity Caves | Found Alien Artifact 30553 | -5/Proximity Caves | Identified Dimensional Node Initializer 30553 | -5/Proximity Caves | Initialized slip node 31543 | -5/Proximity Caves | Discovered new exit (range 5) 31646 | -5/Proximity Caves | Entered Factory 31646 | -5/Factory | Evolved 2 slots: Power x1, Propulsion x1 31647 | -5/Factory | Identified exit to Upper Caves 31910 | -5/Factory | Repaired Lrn. Missile Launcher? 31994 | -5/Factory | Repaired Lyr. Heavy Armor Plating? 32042 | -5/Factory | Discovered new exit (range 8) 32325 | -5/Factory | Discovered new exit (range 19) 32385 | -5/Factory | Central database locked down 32445 | -5/Factory | Identified exit to Factory 32617 | -5/Factory | Build established: Hacker-Sprinter 32660 | -5/Factory | Fabricated Hvy. Reactive Plating (x1) 32735 | -5/Factory | Cargo convoy interrupted 32863 | -5/Factory | Discovered exit to Factory (range 4) 33242 | -5/Factory | Found Prototype Processor 33242 | -5/Factory | Identified Exp. Signal Interpreter 33262 | -5/Factory | Found Prototype Hackware 33398 | -5/Factory | Repaired Corrupted Imp. Heavy Treads? 33398 | -5/Factory | Identified Exp. Hacking Suite 33469 | -5/Factory | Incoming investigation squad redirected 33489 | -5/Factory | Fabricated H-66 Slayer? 33490 | -5/Factory | Fabricated Imp. Heavy Treads? 33504 | -5/Factory | Fabricated Lrn. Missile Launcher? 33538 | -5/Factory | Fabricated Arm. Medium Treads? 33677 | -5/Factory | Destroyed 9 combat bots 33966 | -5/Factory | Incoming investigation squad redirected 34014 | -5/Factory | Identified Mobile Refinery Mk. CCLXVII 34121 | -5/Factory | Build established: Sprinter 34346 | -5/Factory | First assault squad dispatched 34413 | -5/Factory | Incoming investigation squad redirected 34963 | -5/Factory | Incoming assault squad redirected 35023 | -5/Factory | Build established: Mutant 35805 | -5/Factory | High security lockdown imminent 35836 | -5/Factory | Destroyed 7 combat bots 35885 | -5/Factory | High security lockdown engaged 36137 | -5/Factory | Destroyed 13 combat bots 36235 | -5/Factory | Destroyed 17 combat bots 36276 | -5/Factory | Destroyed 10 combat bots 36335 | -5/Factory | Build established: Machinist-Mutant 36380 | -5/Factory | Destroyed 7 combat bots 36533 | -5/Factory | Destroyed 11 combat bots 36566 | -5/Factory | Sterilization system engaged 36566 | -5/Factory | Non-combat units ordered to evacuate 36595 | -5/Factory | Destroyed 20 combat bots 36666 | -5/Factory | Combat units ordered to evacuate 36784 | -5/Factory | Destroyed 10 combat bots 36795 | -5/Factory | System corruption reached 10% 36866 | -5/Factory | Ambient heat levels rising (+10) 36878 | -5/Factory | Build established: Hauler-Mutant 37016 | -5/Factory | Ambient heat levels rising (+10) 37166 | -5/Factory | Ambient heat levels rising (+10) 37188 | -5/Factory | Entered Upper Caves 37189 | -5/Upper Caves | Encountered a Warlord checkpoint 37424 | -5/Upper Caves | Spotted B-75 Beast 37454 | -5/Upper Caves | Destroyed B-75 Beast 37801 | -5/Upper Caves | Identified exit to Upper Caves 38073 | -5/Upper Caves | Attracted the attention of an 0b10 checkpoint 38711 | -5/Upper Caves | Entered another Upper Caves area 38723 | -5/Upper Caves | Discovered exit to Factory (range 19) 38990 | -5/Upper Caves | Encountered a Warlord checkpoint 39143 | -5/Upper Caves | Attracted the attention of an 0b10 checkpoint 39250 | -5/Upper Caves | Attracted the attention of an 0b10 outpost 39297 | -5/Upper Caves | Destroyed 7 combat bots 39691 | -5/Upper Caves | Discovered new exit (range 13) 39871 | -5/Upper Caves | Learned location of 1 exit from Factory 40507 | -5/Upper Caves | Entered Warlord 40561 | -5/Warlord | System corruption cleaned by Quarantine Array 41360 | -5/Warlord | Found Prototype Special Weapon 41363 | -5/Warlord | Found Prototype Special Weapon 41456 | -5/Warlord | Warlord's base attacked by MAIN.C 41457 | -5/Warlord | Met Warlord 41479 | -5/Warlord | Opened Warlord's prototype stash 41485 | -5/Warlord | Found Prototype Reactor 41485 | -5/Warlord | Identified Vortex Chain Reactor 41511 | -5/Warlord | Found Prototype Device 41511 | -5/Warlord | Identified System Purifier 41518 | -5/Warlord | Found Prototype Processor 41518 | -5/Warlord | Identified Exp. Target Analyzer 41806 | -5/Warlord | Warlord forces counterattacked 41931 | -5/Warlord | Discovered new exit (range 12) 41949 | -5/Warlord | Entered Proximity Caves 41949 | -4/Proximity Caves | Accompanied by 5 allies 42063 | -4/Proximity Caves | Attracted the attention of an 0b10 outpost 42351 | -4/Proximity Caves | Attracted the attention of an 0b10 checkpoint 42389 | -4/Proximity Caves | Learned 8 Research zone layouts 42600 | -4/Proximity Caves | Spotted B-86 Titan 42610 | -4/Proximity Caves | Destroyed B-86 Titan 43393 | -4/Proximity Caves | Discovered exit to Factory (range 15) 43423 | -4/Proximity Caves | Entered Factory 43423 | -4/Factory | Accompanied by 5 allies 43423 | -4/Factory | Evolved 2 slots: Utility x1, Weapon x1 43424 | -4/Factory | Identified exit to Research 43452 | -4/Factory | Identified exit to Upper Caves 43452 | -4/Factory | Identified exit to Extension 43755 | -4/Factory | Build established: Hacker-Mutant 43920 | -4/Factory | Identified RU-N14's Throwing Claymores v3 (x2) 44094 | -4/Factory | Found Exp. Hacking Suite 44173 | -4/Factory | First assault squad dispatched 44202 | -4/Factory | Incoming assault squad redirected 44831 | -4/Factory | Discovered exit to Research (range 7) 45104 | -4/Factory | Fabricated Neutron Missile Launcher? 45129 | -4/Factory | Discovered exit to Research (range 13) 45165 | -4/Factory | Central database locked down 45170 | -4/Factory | Exp. Hacking Suite fried by hacking feedback 45185 | -4/Factory | Fabricated Neutron Missile Launcher? 45195 | -4/Factory | Incoming investigation squad redirected 45199 | -4/Factory | Incoming investigation squad redirected 45219 | -4/Factory | Repaired Tri-rail Accelerator 45353 | -4/Factory | Destroyed 12 combat bots 45629 | -4/Factory | Build established: Hacker-Sprinter 45695 | -4/Factory | Incoming assault squad redirected 45733 | -4/Factory | Destroyed 8 combat bots 45764 | -4/Factory | Found Imp. Powered Armor 45889 | -4/Factory | Spotted B-86 Titan 45945 | -4/Factory | Incoming assault squad redirected 46049 | -4/Factory | Repaired Broken Imp. Heavy Treads? 46148 | -4/Factory | Incoming assault squad redirected 46154 | -4/Factory | High security lockdown imminent 46234 | -4/Factory | High security lockdown engaged 46359 | -4/Factory | Destroyed 15 combat bots 46419 | -4/Factory | Destroyed 7 combat bots 46487 | -4/Factory | Build established: Hauler-Mutant 46534 | -4/Factory | Destroyed 14 combat bots 46587 | -4/Factory | Destroyed 11 combat bots 46632 | -4/Factory | Destroyed 12 combat bots 46841 | -4/Factory | Sterilization system engaged 46841 | -4/Factory | Non-combat units ordered to evacuate 46884 | -4/Factory | Destroyed 34 combat bots 46941 | -4/Factory | Combat units ordered to evacuate 47141 | -4/Factory | Ambient heat levels rising (+10) 47291 | -4/Factory | Ambient heat levels rising (+10) 47441 | -4/Factory | Ambient heat levels rising (+10) 47591 | -4/Factory | Ambient heat levels rising (+10) 47741 | -4/Factory | Ambient heat levels rising (+10) 47822 | -4/Factory | Entered Upper Caves 47968 | -4/Upper Caves | Attracted the attention of an 0b10 checkpoint 48116 | -4/Upper Caves | Learned location of Armory (-3) 48467 | -4/Upper Caves | Build established: Hauler-Tank 48852 | -4/Upper Caves | Attracted the attention of an 0b10 base 48897 | -4/Upper Caves | Learned Research emergency access door positions 48899 | -4/Upper Caves | Learned Research garrison access intel 48899 | -4/Upper Caves | Learned Research terminal intel 48899 | -4/Upper Caves | Learned Research emergency access door positions 48899 | -4/Upper Caves | Learned Armory trap positions 48899 | -4/Upper Caves | Learned Extension trap positions 48900 | -4/Upper Caves | System corruption reached 10% 49028 | -4/Upper Caves | Discovered new exit (range 15) 49174 | -4/Upper Caves | Entered another Upper Caves area 49260 | -4/Upper Caves | Discovered exit to Research (range 18) 49507 | -4/Upper Caves | Discovered new exit (range 113) 49602 | -4/Upper Caves | Learned Research emergency access door positions 50082 | -4/Upper Caves | Build established: Hauler-Mutant 50365 | -4/Upper Caves | Entered Zhirov 50365 | -4/Zhirov | Discovered new exit (range 3) 50407 | -4/Zhirov | Met Zhirov 50442 | -4/Zhirov | Learned location of Quarantine (-3) 50442 | -4/Zhirov | Learned location of Testing (-2) 50442 | -4/Zhirov | Learned location of Command (-1) 50479 | -4/Zhirov | Zhirov requested help retrieving the SGEMP Prototype 50504 | -4/Zhirov | Found Alien Artifact 50504 | -4/Zhirov | Identified Integrated Reactor 50504 | -4/Zhirov | Installed Integrated Reactor, increased core energy generation (+10) 50526 | -4/Zhirov | Found Alien Artifact 50800 | -4/Zhirov | Entered Proximity Caves 51107 | -3/Proximity Caves | Build established: Hauler-Tank 51426 | -3/Proximity Caves | Discovered exit to Research (range 11) 51496 | -3/Proximity Caves | Entered Research 51496 | -3/Research | Evolved 2 slots: Utility x2 51497 | -3/Research | Identified exit to Armory 51499 | -3/Research | Loaded intel: 21 terminal locations 51500 | -3/Research | Loaded intel: 4 garrison access locations 51865 | -3/Research | Incoming investigation squad redirected 51934 | -3/Research | Crushed by falling debris 52110 | -3/Research | Discovered new exit (range 16) 52132 | -3/Research | Repaired Imp. Powered Armor? 52148 | -3/Research | Found Unknown Launcher 52148 | -3/Research | Identified Fusion Bomb Launcher 52168 | -3/Research | Incoming investigation squad redirected 52243 | -3/Research | Found Imp. Powered Armor 52247 | -3/Research | Found Prototype Processor 52247 | -3/Research | Identified Exp. Signal Interpreter 52402 | -3/Research | Incoming investigation squad redirected 52405 | -3/Research | Found Unknown Device 52405 | -3/Research | Identified Antimissile System 52520 | -3/Research | Build established: Sprinter 52580 | -3/Research | Discovered new exit (range 3) 52604 | -3/Research | System corruption reached 10% 52699 | -3/Research | Found Prototype Device 52699 | -3/Research | Identified Exp. Thermal Defense Suite 52777 | -3/Research | Found Prototype Device 52777 | -3/Research | Identified Exp. Thermal Shield 52850 | -3/Research | Found Prototype Protection 52850 | -3/Research | Identified Centrium Heavy Armor Plating 52857 | -3/Research | Found Centrium Heavy Armor Plating 52861 | -3/Research | Found Centrium Heavy Armor Plating 53101 | -3/Research | Incoming investigation squad redirected 53117 | -3/Research | Incoming investigation squad redirected 53140 | -3/Research | Fabricated Neutron Missile Launcher? 53171 | -3/Research | Discovered new exit (range 16) 53185 | -3/Research | Found Unknown Piercing Weapon 53185 | -3/Research | Identified Enh. Force Lance 53266 | -3/Research | Fabricated Neutron Missile Launcher? 53321 | -3/Research | Build established: Hacker-Sprinter 53406 | -3/Research | Found Prototype Launcher 53408 | -3/Research | Found Exp. Thermal Shield 53571 | -3/Research | Identified Hellfire Missile Launcher 53996 | -3/Research | First assault squad dispatched 54021 | -3/Research | Incoming assault squad redirected 54261 | -3/Research | Incoming assault squad redirected 54860 | -3/Research | Build established: Hauler-Mutant 55551 | -3/Research | Incoming assault squad redirected 55747 | -3/Research | High security lockdown imminent 55827 | -3/Research | High security lockdown engaged 55955 | -3/Research | Destroyed 10 combat bots 56053 | -3/Research | Destroyed 8 combat bots 56131 | -3/Research | Spotted Investigator 56135 | -3/Research | Scanned by Researcher 56135 | -3/Research | Destroyed Investigator 56244 | -3/Research | Spotted Investigator 56246 | -3/Research | Destroyed Investigator 56257 | -3/Research | Destroyed Striker 56298 | -3/Research | Destroyed 25 combat bots 56436 | -3/Research | Sterilization system engaged 56436 | -3/Research | Non-combat units ordered to evacuate 56438 | -3/Research | Spotted Striker 56438 | -3/Research | Destroyed Striker 56501 | -3/Research | Destroyed 20 combat bots 56530 | -3/Research | Destroyed Striker 56530 | -3/Research | Destroyed Executioner 56536 | -3/Research | Combat units ordered to evacuate 56559 | -3/Research | Destroyed 9 combat bots 56736 | -3/Research | Ambient heat levels rising (+10) 56886 | -3/Research | Ambient heat levels rising (+10) 56901 | -3/Research | Found Centrium Heavy Armor Plating 57036 | -3/Research | Ambient heat levels rising (+10) 57186 | -3/Research | Ambient heat levels rising (+10) 57336 | -3/Research | Ambient heat levels rising (+10) 57406 | -3/Research | Entered Armory 57407 | -3/Armory | Loaded intel: 32 trap records 57533 | -3/Armory | Found Unknown Device 57533 | -3/Armory | Identified Adv. Force Booster 57704 | -3/Armory | First assault squad dispatched 57736 | -3/Armory | Found Unknown Launcher 57736 | -3/Armory | Identified Gamma Bomb Array 57824 | -3/Armory | High security lockdown imminent 57858 | -3/Armory | Destroyed 9 combat bots 57904 | -3/Armory | High security lockdown engaged 57940 | -3/Armory | Build established: Hauler-Tank 58031 | -3/Armory | Spotted Executioner 58040 | -3/Armory | Destroyed Executioner 58061 | -3/Armory | Destroyed 8 combat bots 58130 | -3/Armory | Destroyed 8 combat bots 58164 | -3/Armory | Destroyed 8 combat bots 58240 | -3/Armory | Build established: Hauler-Mutant 58319 | -3/Armory | Destroyed 11 combat bots 58355 | -3/Armory | Spotted Executioner 58363 | -3/Armory | Destroyed Executioner 58369 | -3/Armory | Destroyed Striker 58399 | -3/Armory | Destroyed 16 combat bots 58488 | -3/Armory | Destroyed 11 combat bots 58497 | -3/Armory | System corruption reached 30% 58531 | -3/Armory | Destroyed 16 combat bots 58673 | -3/Armory | Spotted Striker 58673 | -3/Armory | Spotted Striker 58675 | -3/Armory | Spotted Executioner 58676 | -3/Armory | Spotted Striker 58677 | -3/Armory | Destroyed Striker 58677 | -3/Armory | Destroyed Striker 58680 | -3/Armory | Destroyed Striker 58680 | -3/Armory | Destroyed Executioner 58688 | -3/Armory | Destroyed Striker 58712 | -3/Armory | Destroyed 19 combat bots 58733 | -3/Armory | Sterilization system engaged 58733 | -3/Armory | Non-combat units ordered to evacuate 58734 | -3/Armory | Spotted Executioner 58742 | -3/Armory | Destroyed Executioner 58765 | -3/Armory | Destroyed 8 combat bots 58793 | -3/Armory | Destroyed Investigator 58810 | -3/Armory | Spotted Executioner 58811 | -3/Armory | Destroyed Executioner 58832 | -3/Armory | Destroyed 12 combat bots 58833 | -3/Armory | Combat units ordered to evacuate 59033 | -3/Armory | Ambient heat levels rising (+10) 59111 | -3/Armory | Build established: Hauler-Tank 59183 | -3/Armory | Ambient heat levels rising (+10) 59333 | -3/Armory | Ambient heat levels rising (+10) 59483 | -3/Armory | Ambient heat levels rising (+10) 59633 | -3/Armory | Ambient heat levels rising (+10) 59783 | -3/Armory | Ambient heat levels rising (+10) 59933 | -3/Armory | Ambient heat levels rising (+10) 60008 | -3/Armory | Discovered new exit (range 6) 60083 | -3/Armory | Ambient heat levels rising (+10) 60090 | -3/Armory | Entered Lab 60090 | -3/Lab | Discovered new exit (range 9) 60125 | -3/Lab | Unable to decrypt terminal 60125 | -3/Lab | Opened the door to a hidden lab 60126 | -3/Lab | Gained access to the hidden lab's interior 60138 | -3/Lab | Entered Research 60138 | -2/Research | Warlord forces began assault on 0b10 60138 | -2/Research | Evolved 2 slots: Utility x1, Weapon x1 60248 | -2/Research | Research machine network offline 60612 | -2/Research | Discovered new exit (range 6) 60640 | -2/Research | Borebot progress halted 60690 | -2/Research | Identified exit to Testing 60888 | -2/Research | Spotted Striker 60897 | -2/Research | Destroyed Striker 60960 | -2/Research | Borebot progress halted 60986 | -2/Research | Borebot progress halted 61017 | -2/Research | Warlord destroyed during the assault 61044 | -2/Research | Found Exp. Thermal Shield 61535 | -2/Research | Spotted Executioner 61537 | -2/Research | Spotted Striker 61543 | -2/Research | Destroyed Executioner 61564 | -2/Research | Destroyed Striker 61609 | -2/Research | Destroyed 7 combat bots 61662 | -2/Research | Entered Testing 61663 | -2/Testing | Maximum security lockdown engaged 61889 | -2/Testing | Destroyed 26 combat bots 61926 | -2/Testing | Destroyed Investigator 61965 | -2/Testing | Destroyed 25 combat bots 62021 | -2/Testing | Build established: Hauler-Mutant 62065 | -2/Testing | Destroyed Striker 62110 | -2/Testing | Destroyed 31 combat bots 62251 | -2/Testing | Destroyed Striker 62251 | -2/Testing | Destroyed Striker 62275 | -2/Testing | Spotted Executioner 62279 | -2/Testing | Destroyed Executioner 62281 | -2/Testing | Spotted Executioner 62282 | -2/Testing | Destroyed Executioner 62288 | -2/Testing | Destroyed Striker 62309 | -2/Testing | Destroyed 39 combat bots 62506 | -2/Testing | Spotted Executioner 62507 | -2/Testing | Destroyed Executioner 62507 | -2/Testing | Destroyed Executioner 62512 | -2/Testing | Destroyed Striker 62515 | -2/Testing | Destroyed Striker 62515 | -2/Testing | Destroyed Executioner 62519 | -2/Testing | Spotted Executioner 62521 | -2/Testing | Destroyed Executioner 62521 | -2/Testing | Destroyed Executioner 62524 | -2/Testing | Sterilization system engaged 62524 | -2/Testing | Non-combat units ordered to evacuate 62535 | -2/Testing | Spotted Executioner 62536 | -2/Testing | Destroyed Executioner 62536 | -2/Testing | Destroyed Striker 62536 | -2/Testing | Destroyed Executioner 62539 | -2/Testing | Destroyed Executioner 62541 | -2/Testing | Spotted Striker 62541 | -2/Testing | Destroyed Striker 62562 | -2/Testing | Destroyed 47 combat bots 62624 | -2/Testing | Combat units ordered to evacuate 62705 | -2/Testing | Spotted PH-XZIB1FWBDZ 62717 | -2/Testing | Rewired PH-XZIB1FWBDZ 62814 | -2/Testing | Build established: Hauler-Tank 62824 | -2/Testing | Ambient heat levels rising (+10) 62919 | -2/Testing | Found Prototype Launcher 62919 | -2/Testing | Identified Enh. Gamma Bomb Array 62974 | -2/Testing | Ambient heat levels rising (+10) 63012 | -2/Testing | Stole the SGEMP Prototype 63124 | -2/Testing | Ambient heat levels rising (+10) 63227 | -2/Testing | Build established: Hauler-Mutant 63274 | -2/Testing | Ambient heat levels rising (+10) 63387 | -2/Testing | Discovered new exit (range 8) 63424 | -2/Testing | Ambient heat levels rising (+10) 63574 | -2/Testing | Ambient heat levels rising (+10) 63724 | -2/Testing | Ambient heat levels rising (+10) 63802 | -2/Testing | Build established: Hauler-Tank 63874 | -2/Testing | Ambient heat levels rising (+10) 64024 | -2/Testing | Ambient heat levels rising (+10) 64055 | -2/Testing | Entered Access 64055 | -1/Access | Accompanied by 1 ally 64055 | -1/Access | Evolved 2 slots: Propulsion x2 64056 | -1/Access | Loaded intel: 118 machine locations 64056 | -1/Access | Loaded intel: 106 trap records 64056 | -1/Access | Identified exit to Surface 64056 | -1/Access | Discovered exit to Surface (range 130) 64056 | -1/Access | Identified exit to Command 64056 | -1/Access | Discovered exit to Command (range 86) 64056 | -1/Access | Delivered the SGEMP Prototype to Zhirov 64056 | -1/Access | Zhirov transferred Access data 64223 | -1/Access | High security lockdown imminent 64303 | -1/Access | High security lockdown engaged 64328 | -1/Access | Zhirov warped through subspace 64393 | -1/Access | Spotted Striker 64415 | -1/Access | Destroyed Striker 64454 | -1/Access | Spotted Investigator 64471 | -1/Access | Destroyed Investigator 64560 | -1/Access | Destroyed 38 combat bots 64647 | -1/Access | Destroyed 9 combat bots 64652 | -1/Access | Build established: Hauler-Mutant 64663 | -1/Access | Spotted Striker 64665 | -1/Access | Destroyed Striker 64696 | -1/Access | Destroyed 10 combat bots 64789 | -1/Access | Destroyed 10 combat bots 64815 | -1/Access | Spotted Executioner 64816 | -1/Access | Spotted Executioner 64816 | -1/Access | Destroyed Executioner 64816 | -1/Access | Destroyed Executioner 64827 | -1/Access | Destroyed Executioner 64829 | -1/Access | Destroyed Executioner 64829 | -1/Access | Destroyed Executioner 64864 | -1/Access | Destroyed 29 combat bots 64954 | -1/Access | Sterilization system engaged 64958 | -1/Access | Destroyed 11 combat bots 65254 | -1/Access | Ambient heat levels rising (+10) 65404 | -1/Access | Ambient heat levels rising (+10) 65554 | -1/Access | Ambient heat levels rising (+10) 65704 | -1/Access | Ambient heat levels rising (+10) 65742 | -1/Access | Energy Cycler disabled 65854 | -1/Access | Ambient heat levels rising (+10) 66004 | -1/Access | Ambient heat levels rising (+10) 66073 | -1/Access | Found Prototype Device 66073 | -1/Access | Identified Exp. ECM Suite 66102 | -1/Access | System corruption reached 10% 66154 | -1/Access | Ambient heat levels rising (+10) 66304 | -1/Access | Ambient heat levels rising (+10) 66400 | -1/Access | Found Exp. Terrain Scanner 66454 | -1/Access | Ambient heat levels rising (+10) 66550 | -1/Access | Found Prototype Launcher 66550 | -1/Access | Identified Gui. Micro-nuke Launcher 66604 | -1/Access | Ambient heat levels rising (+10) 66735 | -1/Access | Entered Command 66985 | -1/Command | First assault squad dispatched 67001 | -1/Command | Incoming assault squad redirected 67042 | -1/Command | High security lockdown imminent 67070 | -1/Command | Destroyed 17 combat bots 67122 | -1/Command | High security lockdown engaged 67262 | -1/Command | Destroyed 18 combat bots 67324 | -1/Command | Destroyed Investigator 67352 | -1/Command | Destroyed 18 combat bots 67434 | -1/Command | Destroyed Striker 67437 | -1/Command | Destroyed Executioner 67437 | -1/Command | Destroyed Striker 67458 | -1/Command | Destroyed 16 combat bots 67479 | -1/Command | Spotted Striker 67479 | -1/Command | Destroyed Striker 67517 | -1/Command | Spotted Striker 67527 | -1/Command | Destroyed Striker 67685 | -1/Command | Spotted Executioner 67686 | -1/Command | Spotted Striker 67686 | -1/Command | Destroyed Executioner 67686 | -1/Command | Destroyed Striker 67708 | -1/Command | Spotted Executioner 67708 | -1/Command | Spotted Executioner 67708 | -1/Command | Spotted Executioner 67708 | -1/Command | Spotted Striker 67708 | -1/Command | Spotted Striker 67708 | -1/Command | Spotted Striker 67709 | -1/Command | Spotted Executioner 67710 | -1/Command | Destroyed Striker 67710 | -1/Command | Destroyed Striker 67713 | -1/Command | Destroyed Executioner 67713 | -1/Command | Destroyed Executioner 67713 | -1/Command | Destroyed Striker 67713 | -1/Command | Destroyed Executioner 67716 | -1/Command | Destroyed Executioner 67748 | -1/Command | Destroyed 34 combat bots 67926 | -1/Command | Destroyed Executioner 67926 | -1/Command | Spotted Striker 67926 | -1/Command | Spotted Striker 67926 | -1/Command | Spotted Striker 67926 | -1/Command | Spotted Executioner 67926 | -1/Command | Spotted Executioner 67926 | -1/Command | Destroyed Executioner 67930 | -1/Command | Destroyed Executioner 67930 | -1/Command | Destroyed Striker 67938 | -1/Command | Destroyed Striker 67940 | -1/Command | Destroyed Striker 67947 | -1/Command | Spotted Striker 67951 | -1/Command | Destroyed Striker 67953 | -1/Command | Destroyed Striker 67972 | -1/Command | Destroyed Investigator 67978 | -1/Command | Spotted Striker 67984 | -1/Command | Spotted Striker 67985 | -1/Command | Destroyed Striker 68004 | -1/Command | Destroyed Striker 68007 | -1/Command | Lost 4 parts (1u3w) 68025 | -1/Command | Destroyed 31 combat bots 70176 | -1/Command | Build established: Scavenger-Mutant 71047 | -1/Command | Spotted B-99 Colossus 71088 | -1/Command | Destroyed B-99 Colossus 71160 | -1/Command | Found Antimissile System 71336 | -1/Command | Build established: Hauler-Tank 71416 | -1/Command | Found Antimissile System 71898 | -1/Command | Build established: Hauler-Mutant 72216 | -1/Command | Found Hvy. Reactive Plating 72261 | -1/Command | Spotted M Guard 72294 | -1/Command | Destroyed Combat Programmer 72307 | -1/Command | System corruption reached 30% 72317 | -1/Command | Spotted M Guard 72338 | -1/Command | Spotted Combat Programmer 72359 | -1/Command | Lost 4 parts (4u) 72359 | -1/Command | Destroyed M Guard 72362 | -1/Command | Destroyed Combat Programmer 72414 | -1/Command | Destroyed M Guard 72414 | -1/Command | All MAIN.C guards destroyed 72461 | -1/Command | Found Prototype Device 72461 | -1/Command | Identified Thermal Barrier 72469 | -1/Command | Found Prototype Reactor 72469 | -1/Command | Identified Zero-point Reactor 72475 | -1/Command | Found Zero-point Reactor 72661 | -1/Command | Build established: Hauler-Tank 73597 | -1/Command | Found Zero-point Reactor 73673 | -1/Command | Build established: Hauler-Mutant 74082 | -1/Command | Build established: Scavenger-Mutant 74547 | -1/Command | Build established: Scavenger-Tank 75276 | -1/Command | Build established: Scavenger-Mutant 75639 | -1/Command | Met MAIN.C 75670 | -1/Command | 0b10 Conduit disabled 75717 | -1/Command | Destroyed MAIN.C Shell 75720 | -1/Command | MAIN.C activated Command garrisons 75723 | -1/Command | Zhirov used SGEMP to disable MAIN.C 75801 | -1/Command | Discovered exit to Surface (range 34) 75801 | -1/Command | Discovered exit to Surface (range 124) 75801 | -1/Command | Extracted map data and part IDs from MAIN.C's data core 76565 | -1/Command | Found Exp. System Purifier 76855 | -1/Command | Build established: Mutant 77330 | -1/Command | Found Unknown Device 77330 | -1/Command | Identified Antimissile System 80817 | -1/Command | Build established: Scavenger-Sprinter 81136 | -1/Command | Build established: Scavenger-Mutant 81656 | -1/Command | Build established: Hauler-Mutant 82993 | -1/Command | Found Vortex Chain Reactor 83150 | -1/Command | Found Imp. Potential Cannon 83156 | -1/Command | Found Zero-point Reactor 83162 | -1/Command | Found Exp. Phase Shifter 83450 | -1/Command | Build established: Hauler-Tank 83493 | -1/Command | Found Adv. Kinecellerator 84869 | -1/Command | Warped through subspace to slip node 84869 | -1/Command | Discovered new exit (range 4) 84871 | -1/Command | Found Exp. Targeting Computer 84875 | -1/Command | Entered Access_0 84876 | -1/Access_0 | Met Architect 84905 | -1/Access_0 | Architect warped through subspace 84909 | -1/Access_0 | Destroyed A8 85030 | -1/Access_0 | Architect warped through subspace 85031 | -1/Access_0 | Subspace Access Node disabled 85070 | -1/Access_0 | Architect warped through subspace 85140 | -1/Access_0 | A6 warped into view 85181 | -1/Access_0 | Subspace Access Node disabled 85212 | -1/Access_0 | Lost 3 parts (3u) 85221 | -1/Access_0 | Core integrity fell below 50% 85222 | -1/Access_0 | Architect warped through subspace 85256 | -1/Access_0 | Destroyed A6 85298 | -1/Access_0 | Lost 4 parts (3u1w) 85316 | -1/Access_0 | Found Exp. Core Analyzer 85367 | -1/Access_0 | Build established: Scavenger-Mutant 85370 | -1/Access_0 | Core integrity fell below 20% 85389 | -1/Access_0 | A5 warped into view 85409 | -1/Access_0 | Lost 10 parts (1p4n3u2w) 85429 | -1/Access_0 | Subspace Access Node disabled 85451 | -1/Access_0 | Destroyed by Architect with Modified Sigix Sheargun Last Messages --------------- 85415_ Penetrated by Quantum Shear. 85415_ Quantum Shear penetrates Wall. 85419_ Penetrated by Quantum Shear. 85422_ Quantum Shear penetrates Wall. 85422_ Cmb. Antigrav System destroyed. 85429_ Subspace Access Node disabled. 85434_ Quantum Shear penetrates Wall. 85434_ Lrn. Terrain Scanner destroyed. 85434_ Penetrated by Quantum Shear. 85434_ Exp. Power Amplifier destroyed. 85436_ Penetrated by Quantum Shear. 85436_ Zero-point Reactor destroyed. 85436_ Penetrated by Quantum Shear. 85439_ Cmb. Antigrav System destroyed. 85439_ Penetrated by Quantum Shear. 85440_ Exp. Power Amplifier destroyed. 85441_ Quantum Shear penetrates Wall. 85441_ Penetrated by Quantum Shear. 85444_ Gravity Flail destroyed. 85445_ Cmb. Antigrav System destroyed. Map ----- +----------------------------------------------------+ | ?????????????????????????????????????????????????? | | ?????????????????????????????????????????????????? | | ?????????????????????????????????????????????????? | | ?????????????????????????????????????????????????? | | ?????????????????????????????????????????????????? | | ?????????????????????????????????????????????????? | | ?????????????????????????????????????????????????? | | ?????????????????????????????????????????????????? | | ?????????????????????????????????????????????????? | | ?????????????????????????????????????????????????? | | ?????????????????????????????????????????????????? | | ??????????????##?????????????????????????????????? | | ????????????### ?????????????????????????????????? | | ????????????? #????????????????????????????????? | | ?????????????? ????????????????????????????????? | | ??????????????# ????????????????????????????????? | | ?????????????## ##??????????###?????????????????? | | ?????????????# #?????###?# ##????????????????? | | ????????????? ####??# ## ####?????????????? | | ??????????????? #?## ?????????????? | | ???????? ???????# #?# ???????????????? | | ????????????????# ### #??????????????????? | | ????????#??????## #???????????????????? | | ???????????????# 0 #????? ?????????????? | | ???????????????# #### ##???? ??????????????? | | ???????????????# #??## @ #????? #????????????? | | ???????????????# #???### #??# #????????????? | | ???????????????# #?????## ##???????????? | | ???????????????# #???????# #???????????? | | ???????????????# #????????###### #???????????? | | ???????#??????## #????????????? #??????#????? | | ??????????????#" #???????????## #???????????? | | ????????????###" #???????###?# #????????????? | | ????????????#""" #??????## ### #????????????? | | ????????????#" ####???## ## ##???????????? | | ????????????# #???#" ## #???????????? | | ????# ##????# ###### #???????????? | | ????# ## ## #??????????? | | ????# ##??????????????? | | ??????#"" ### ##??????????????? | | ??# # #?# ## "#?????????????? | | ?# #### #?####### "#" ""#????????????? | | ? #### #???# #???????##### "###########"# | | ?? ?????## ???## ##????????#" | | ?????????# ??###" ####???# ""##""# ### | | ????????? ??# "" #???# ## ####???# ### | | ???????? ???# "" #???### ## ##??????# ## | | ??????? ???### "###?????# ####??????## | | ?????? ??????## ##???????# #??????????## | | ????? ?????????# #????????## ??#####??### | +----------------------------------------------------+ Best States ------------- Heat Dissipation 147 Coolant Potential 100 Energy Generation 115 Energy Capacity 1200 Matter Stores 700 Matter Capacity 800 Sight Range 23 Terrain Scan Range 24 Terrain Scan Density 10 ECM Strength 1 Jamming Range 16 Cloak Strength 6 Power Amplification 80 Additional Mass Support 12 EM Shielding 3 Corruption Containment 12 Armor Coverage 2450 Resistance: KI 40 Resistance: TH 30 Resistance: EX 25 Resistance: EM 15 Core Shielding 40 Power Shielding 66 Propulsion Shielding 33 Weapon Shielding 90 Point Defense Rating 480 Weapon Cycling 30 Melee Speed Boost 30 Phase Shifting 20 Evasion (%) 90 Targeting Accuracy 20 Launcher Accuracy 40 Target Analysis 10 Core Analysis 8 Armor Integrity Analysis 40 Recoil Reduction 8 Matter Filtering 50 Energy Filtering 50 Particle Charging 30 Kinecelleration 50 Offensive Hacking 53 Defensive Hacking 32 Authchip Count 1 Item Schematics ----------------- Cargo Storage Unit | -8/Materials | Hacked Lrn. Tractor Beam | -8/Materials | Hacked Combat Drone Bay | -7/Data Miner | Free Lgt. Regenerative Plating | -7/Data Miner | Free Cld. Aerolev Unit | -7/Data Miner | Free Thermal Defense Suite | -7/Data Miner | Free Imp. Heavy Machine Gun | -7/Data Miner | Free Field Propulsion Drive | -7/Data Miner | Free Imp. Transmission Jammer | -7/Data Miner | Free Adv. Plasma Cannon | -7/Data Miner | Free Adv. Thermal Shield | -7/Data Miner | Free Drone Bay | -7/Data Miner | Free Lrn. Missile Launcher | -6/Factory | Hacked Neutron Cannon | -6/Factory | Scanalyzed Imp. Weapon Cycler | -6/Factory | Scanalyzed Hvy. Reflective Plating | -6/Factory | Hacked Hvy. Reactive Plating | -6/Factory | Hacked Biomechanical Wings | -6/Factory | Hacked Adv. Trap Scanner | -6/Factory | Hacked Imp. Particle Charger | -6/Factory | Hacked Hvy. Plasma Cannon | -6/Zion | Archive Adv. Cooling System | -6/Zion | Archive Hvy. Machine Gun | -6/Zion | Archive Energy Well | -6/Zion | Archive Recoil Nullifier | -6/Zion | Archive Magnetic Acceleration Cannon | -6/Zion | Archive Phase Gun | -6/Zion | Archive Imp. Antigrav System | -6/Zion | Archive Imp. Hardlight Generator | -6/Zion | Archive Tesla Rifle | -6/Zion | Archive Lgt. Angular Momentum Engine | -6/Zion | Archive Imp. Plasma Cutter | -6/Zion | Archive Antigrav System | -6/Zion | Archive Plasma Rifle | -6/Zion | Archive Lrn. Phase Cannon | -6/Zion | Archive Lyr. Heavy Armor Plating | -5/Factory | Scanalyzed Antimatter Cannon | -5/Factory | Scanalyzed Adv. Shield Generator | -5/Factory | Scanalyzed Adv. Treads | -5/Factory | Hacked Hvy. Phase Cannon | -5/Factory | Hacked Myomer Leg | -5/Factory | Hacked Imp. Heavy Treads | -5/Factory | Hacked Nova Cannon | -5/Factory | Hacked Exp. Hacking Suite | -5/Factory | Scanalyzed Exp. Q-thruster | -5/Factory | Scanalyzed Hardcell Cannon | -5/Factory | Hacked Hvy. Shock Bomb Launcher | -5/Factory | Hacked Neutron Missile Launcher | -4/Factory | Hacked Hyp. Railgun | -4/Factory | Hacked Assault Drone Bay | -4/Zhirov | Free Exp. Heat Sink | -4/Zhirov | Free Exp. Optical Array | -4/Zhirov | Free Imp. Arc Thrower | -4/Zhirov | Free Imp. Power Shielding | -3/Research | Scanalyzed Robot Schematics ------------------ A-15 Conveyor | -7/Data Miner | Free G-47 Trooper | -7/Data Miner | Free B-48 Gladiator | -7/Data Miner | Free W-25 Informer | -7/Data Miner | Free B-60 Warrior | -7/Data Miner | Free G-50 Soldier | -7/Data Miner | Free T-07 Excavator | -6/Zion | Archive H-66 Slayer | -6/Zion | Archive Fabricated ------------ Cargo Storage Unit | x1 | -7/Factory Lrn. Tractor Beam | x2 | -7/Factory B-60 Warrior | x3 | -6/Factory | Authchip Lrn. Missile Launcher | x1 | -6/Factory Adv. Thermal Shield | x2 | -6/Factory Biomechanical Wings | x1 | -6/Factory Hvy. Reactive Plating | x1 | -6/Factory Cargo Storage Unit | x1 | -6/Factory Hvy. Reactive Plating | x1 | -5/Factory H-66 Slayer | x2 | -5/Factory Imp. Heavy Treads | x2 | -5/Factory Lrn. Missile Launcher | x1 | -5/Factory Arm. Medium Treads | x2 | -5/Factory | Preloaded Neutron Missile Launcher | x1 | -4/Factory Neutron Missile Launcher | x1 | -4/Factory Neutron Missile Launcher | x1 | -3/Research Neutron Missile Launcher | x1 | -3/Research Alien Tech Used ----------------- Dimensional Node Initializer Integrated Reactor Transdimensional Reconstructor Achievements -------------- Sorry Old Pal Challenges ------------ None Game ------ Seed TachyonAdvancedPod Manual? 0 Play Time 26:55:22 Cumulative 881.9 hours Start 2022.09.07 @ 20:20:54 End 2022.09.17 @ 11:06:48 Sessions 43 Manual Loads 0 Difficulty Rogue Special Mode None Game No. 195 Rogue 163 Adventurer 31 Explorer 1 Win Type - Total 40 Types 28/0/6/5/0/0/1/0/0 Lore% 86 Gallery% 89 Achievement% 76 Wizard Run 0 Options --------- ASCII 0 Keyboard 0 Movement Arrows Keybinds 0 Fullscreen 1 Font 20/Terminus Map View 66x50 Tactical HUD 1 Map Filters NONE Filters NONE Steam 1 RUN: 4cdcfa7a-f5c3-4e99-b85d-e0e3cbca7805